Workbook

Sheet Values
E1: ADDITION & SUBTRACTION OF FRACTIONS
E2: Simplified, Mixed Numeral Answers
C4: INSTRUCTIONS
B6: Step 1 | C6: Click to select the denominators to be used for this sheet.
I8: NOTES
I9: * Some questions have improper fractions
I10: although the answer may be a mixed number
I11: * Subtractions usually have a proper fraction answer.
B13: Step 2 | C13: Click to select the type of operation.
B19: Step 3 | C19: Click on WorkSheet tab below. | I19: PRESS F9 for NEW WorkSheet
B21: Note | C21: If you click on the WorkSheet tab then hold down shift and click on the Solutions tab, you will be able to print both the WorkSheet and the solutions.

Sheet Worksheet
I1: =Working!M1 -> SUBTRACTION OF FRACTIONS
T2: =CONCATENATE("Worksheet ",Working!J1,Working!H1) -> Worksheet AFS - 391
A3: Simplify the following;
A4: =Working!B4 -> 1) | B4: =Working!T4 -> 6 | C4: =Working!S4 -> - | D4: =Working!V4 -> 1 | E4: =Working!B14 -> 6) | F4: =Working!T14 -> 17 | G4: =Working!S14 -> - | H4: =Working!V14 -> 3 | I4: =Working!B24 -> 11) | J4: =Working!T24 -> 19 | K4: =Working!S24 -> - | L4: =Working!V24 -> 6 | M4: =Working!B34 -> 16) | N4: =Working!T34 -> 6 | O4: =Working!S34 -> - | P4: =Working!V34 -> 5 | Q4: =Working!B44 -> 21) | R4: =Working!T44 -> 31 | S4: =Working!S44 -> - | T4: =Working!V44 -> 4
B5: =Working!T5 -> 8 | D5: =Working!V5 -> 16 | F5: =Working!T15 -> 13 | H5: =Working!V15 -> 8 | J5: =Working!T25 -> 15 | L5: =Working!V25 -> 12 | N5: =Working!T35 -> 8 | P5: =Working!V35 -> 10 | R5: =Working!T45 -> 16 | T5: =Working!V45 -> 14
A15: =Working!B6 -> 2) | B15: =Working!T6 -> 9 | C15: =Working!S6 -> - | D15: =Working!V6 -> 3 | E15: =Working!B16 -> 7) | F15: =Working!T16 -> 2 | G15: =Working!S16 -> - | H15: =Working!V16 -> 1 | I15: =Working!B26 -> 12) | J15: =Working!T26 -> 4 | K15: =Working!S26 -> - | L15: =Working!V26 -> 2 | M15: =Working!B36 -> 17) | N15: =Working!T36 -> 9 | O15: =Working!S36 -> - | P15: =Working!V36 -> 6 | Q15: =Working!B46 -> 22) | R15: =Working!T46 -> 4 | S15: =Working!S46 -> - | T15: =Working!V46 -> 1
B16: =Working!T7 -> 8 | D16: =Working!V7 -> 3 | F16: =Working!T17 -> 11 | H16: =Working!V17 -> 6 | J16: =Working!T27 -> 4 | L16: =Working!V27 -> 9 | N16: =Working!T37 -> 8 | P16: =Working!V37 -> 11 | R16: =Working!T47 -> 11 | T16: =Working!V47 -> 10
A24: =Working!B8 -> 3) | B24: =Working!T8 -> 4 | C24: =Working!S8 -> - | D24: =Working!V8 -> 5 | E24: =Working!B18 -> 8) | F24: =Working!T18 -> 1 | G24: =Working!S18 -> - | H24: =Working!V18 -> 3 | I24: =Working!B28 -> 13) | J24: =Working!T28 -> 4 | K24: =Working!S28 -> - | L24: =Working!V28 -> 3 | M24: =Working!B38 -> 18) | N24: =Working!T38 -> 8 | O24: =Working!S38 -> - | P24: =Working!V38 -> 10 | Q24: =Working!B48 -> 23) | R24: =Working!T48 -> 6 | S24: =Working!S48 -> - | T24: =Working!V48 -> 3
B25: =Working!T9 -> 6 | D25: =Working!V9 -> 16 | F25: =Working!T19 -> 3 | H25: =Working!V19 -> 9 | J25: =Working!T29 -> 3 | L25: =Working!V29 -> 7 | N25: =Working!T39 -> 11 | P25: =Working!V39 -> 15 | R25: =Working!T49 -> 7 | T25: =Working!V49 -> 4
A35: =Working!B10 -> 4) | B35: =Working!T10 -> 18 | C35: =Working!S10 -> - | D35: =Working!V10 -> 12 | E35: =Working!B20 -> 9) | F35: =Working!T20 -> 17 | G35: =Working!S20 -> - | H35: =Working!V20 -> 6 | I35: =Working!B30 -> 14) | J35: =Working!T30 -> 4 | K35: =Working!S30 -> - | L35: =Working!V30 -> 8 | M35: =Working!B40 -> 19) | N35: =Working!T40 -> 13 | O35: =Working!S40 -> - | P35: =Working!V40 -> 14 | Q35: =Working!B50 -> 24) | R35: =Working!T50 -> 11 | S35: =Working!S50 -> - | T35: =Working!V50 -> 13
B36: =Working!T11 -> 10 | D36: =Working!V11 -> 15 | F36: =Working!T21 -> 10 | H36: =Working!V21 -> 7 | J36: =Working!T31 -> 7 | L36: =Working!V31 -> 15 | N36: =Working!T41 -> 8 | P36: =Working!V41 -> 15 | R36: =Working!T51 -> 9 | T36: =Working!V51 -> 12
A44: =Working!B12 -> 5) | B44: =Working!T12 -> 5 | C44: =Working!S12 -> - | D44: =Working!V12 -> 1 | E44: =Working!B22 -> 10) | F44: =Working!T22 -> 11 | G44: =Working!S22 -> - | H44: =Working!V22 -> 6 | I44: =Working!B32 -> 15) | J44: =Working!T32 -> 23 | K44: =Working!S32 -> - | L44: =Working!V32 -> 6 | M44: =Working!B42 -> 20) | N44: =Working!T42 -> 25 | O44: =Working!S42 -> - | P44: =Working!V42 -> 3 | Q44: =Working!B52 -> 25) | R44: =Working!T52 -> 8 | S44: =Working!S52 -> - | T44: =Working!V52 -> 1
B45: =Working!T13 -> 8 | D45: =Working!V13 -> 9 | F45: =Working!T23 -> 15 | H45: =Working!V23 -> 9 | J45: =Working!T33 -> 15 | L45: =Working!V33 -> 12 | N45: =Working!T43 -> 16 | P45: =Working!V43 -> 9 | R45: =Working!T53 -> 8 | T45: =Working!V53 -> 13

Sheet Answers
K1: =Working!M1 -> SUBTRACTION OF FRACTIONS
K2: Solutions | Y2: =CONCATENATE("Worksheet ",Working!J1,Working!H1) -> Worksheet AFS - 391
A3: Simplify the following;
A4: =Working!B4 -> 1) | C4: =Working!T4 -> 6 | D4: =Working!$S4 -> - | E4: =Working!V4 -> 1 | F4: =Working!B14 -> 6) | H4: =Working!T14 -> 17 | I4: =Working!S14 -> - | J4: =Working!V14 -> 3 | K4: =Working!B24 -> 11) | M4: =Working!T24 -> 19 | N4: =Working!S24 -> - | O4: =Working!V24 -> 6 | P4: =Working!B34 -> 16) | R4: =Working!T34 -> 6 | S4: =Working!S34 -> - | T4: =Working!V34 -> 5 | U4: =Working!B44 -> 21) | W4: =Working!T44 -> 31 | X4: =Working!S44 -> - | Y4: =Working!V44 -> 4
C5: =Working!T5 -> 8 | E5: =Working!V5 -> 16 | H5: =Working!T15 -> 13 | J5: =Working!V15 -> 8 | M5: =Working!T25 -> 15 | O5: =Working!V25 -> 12 | R5: =Working!T35 -> 8 | T5: =Working!V35 -> 10 | W5: =Working!T45 -> 16 | Y5: =Working!V45 -> 14
A6: = | C6: =Working!$X4 -> 96 | D6: =Working!$S4 -> - | E6: =Working!$Z4 -> 8 | F6: = | H6: =Working!$X14 -> 136 | I6: =Working!S14 -> - | J6: =Working!$Z14 -> 39 | K6: = | M6: =Working!$X24 -> 228 | N6: =Working!S24 -> - | O6: =Working!$Z24 -> 90 | P6: = | R6: =Working!$X34 -> 60 | S6: =Working!S34 -> - | T6: =Working!$Z34 -> 40 | U6: = | W6: =Working!$X44 -> 434 | X6: =Working!S44 -> - | Y6: =Working!$Z44 -> 64
C7: =Working!$K4 -> 128 | E7: =Working!$K4 -> 128 | H7: =Working!$K14 -> 104 | J7: =Working!$K14 -> 104 | M7: =Working!$K24 -> 180 | O7: =Working!$K24 -> 180 | R7: =Working!$K34 -> 80 | T7: =Working!$K34 -> 80 | W7: =Working!$K44 -> 224 | Y7: =Working!$K44 -> 224
A8: = | C8: =Working!$AB4 -> 88 | F8: = | H8: =Working!$AB14 -> 97 | K8: = | M8: =Working!$AB24 -> 138 | P8: = | R8: =Working!$AB34 -> 20 | U8: = | W8: =Working!$AB44 -> 370
C9: =Working!$AB5 -> 128 | H9: =Working!$AB15 -> 104 | M9: =Working!$AB25 -> 180 | R9: =Working!$AB35 -> 80 | W9: =Working!$AB45 -> 224
A10: =IF(C10="","","=") -> = | C10: =IF(Working!$AF4=Working!$AB4,"",Working!$AF4) -> 11 | F10: =IF(H10="","","=") ->  | H10: =IF(Working!$AF14=H8,"",Working!$AF14) ->  | K10: =IF(M10="","","=") -> = | M10: =IF(Working!$AF24=M8,"",Working!$AF24) -> 23 | P10: =IF(R10="","","=") -> = | R10: =IF(Working!$AF34=R8,"",Working!$AF34) -> 1 | U10: =IF(W10="","","=") -> = | W10: =IF(Working!$AF44=W8,"",Working!$AF44) -> 185
C11: =IF(Working!$AF4=Working!$AB4,"",Working!$AF5) -> 16 | H11: =IF(Working!$AF14=H8,"",Working!$AF15) ->  | M11: =IF(Working!$AF24=M8,"",Working!$AF25) -> 30 | R11: =IF(Working!$AF34=R8,"",Working!$AF35) -> 4 | W11: =IF(Working!$AF44=W8,"",Working!$AF45) -> 112
A12: =IF(AND(C12="",B12=""),"","=") ->  | B12: =IF(Working!$AB4=0,"0",IF(Working!$AH4=0,"",Working!$AH4)) ->  | C12: =IF(Working!$AH4=0,"",IF(Working!$AI4=Working!$AB4,"",Working!$AL4)) ->  | F12: =IF(AND(H12="",G12=""),"","=") ->  | G12: =IF(Working!$AB14=0,"0",IF(Working!$AH14=0,"",Working!$AH14)) ->  | H12: =IF(Working!$AH14=0,"",IF(Working!$AI14=H8,"",Working!$AL14)) ->  | K12: =IF(AND(M12="",L12=""),"","=") ->  | L12: =IF(Working!$AB24=0,"0",IF(Working!$AH24=0,"",Working!$AH24)) ->  | M12: =IF(Working!$AH24=0,"",IF(Working!$AI24=M8,"",Working!$AL24)) ->  | P12: =IF(AND(R12="",Q12=""),"","=") ->  | Q12: =IF(Working!$AB34=0,"0",IF(Working!$AH34=0,"",Working!$AH34)) ->  | R12: =IF(Working!$AH34=0,"",IF(Working!$AI34=R8,"",Working!$AI34)) ->  | U12: =IF(AND(W12="",V12=""),"","=") -> = | V12: =IF(Working!$AB44=0,"0",IF(Working!$AH44=0,"",Working!$AH44)) -> 1 | W12: =IF(Working!$AH44=0,"",IF(Working!$AI44=W8,"",Working!$AL44)) -> 73
C13: =IF(Working!$AH4=0,"",IF(Working!$AI4=C8,"",Working!$AL5)) ->  | H13: =IF(Working!$AH14=0,"",IF(Working!$AI14=H8,"",Working!$AL15)) ->  | M13: =IF(Working!$AH24=0,"",IF(Working!$AI24=M8,"",Working!$AL25)) ->  | R13: =IF(Working!$AH34=0,"",IF(Working!$AI34=R8,"",Working!$AL35)) ->  | W13: =IF(Working!$AH44=0,"",IF(Working!$AI44=W8,"",Working!$AL45)) -> 112
A15: =Working!B6 -> 2) | C15: =Working!T6 -> 9 | D15: =Working!$S6 -> - | E15: =Working!V6 -> 3 | F15: =Working!B16 -> 7) | H15: =Working!T16 -> 2 | I15: =Working!$S16 -> - | J15: =Working!V16 -> 1 | K15: =Working!B26 -> 12) | M15: =Working!T26 -> 4 | N15: =Working!$S26 -> - | O15: =Working!V26 -> 2 | P15: =Working!B36 -> 17) | R15: =Working!T36 -> 9 | S15: =Working!$S36 -> - | T15: =Working!V36 -> 6 | U15: =Working!B46 -> 22) | W15: =Working!T46 -> 4 | X15: =Working!$S46 -> - | Y15: =Working!V46 -> 1
C16: =Working!T7 -> 8 | E16: =Working!V7 -> 3 | H16: =Working!T17 -> 11 | J16: =Working!V17 -> 6 | M16: =Working!T27 -> 4 | O16: =Working!V27 -> 9 | R16: =Working!T37 -> 8 | T16: =Working!V37 -> 11 | W16: =Working!T47 -> 11 | Y16: =Working!V47 -> 10
A17: = | C17: =Working!$X6 -> 24 | D17: =Working!$S6 -> - | E17: =Working!$Z6 -> 27 | F17: = | H17: =Working!$X15 -> 104 | I17: =Working!$S16 -> - | J17: =Working!$Z16 -> 11 | K17: = | M17: =Working!$X26 -> 36 | N17: =Working!$S26 -> - | O17: =Working!$Z26 -> 8 | P17: = | R17: =Working!$X36 -> 48 | S17: =Working!$S36 -> - | T17: =Working!$Z36 -> 99 | U17: = | W17: =Working!$X46 -> 40 | X17: =Working!$S46 -> - | Y17: =Working!$Z46 -> 11
C18: =Working!$K6 -> 24 | E18: =Working!$K6 -> 24 | H18: =Working!$K16 -> 66 | J18: =Working!$K16 -> 66 | M18: =Working!$K26 -> 36 | O18: =Working!$K26 -> 36 | R18: =Working!$K36 -> 88 | T18: =Working!$K36 -> 88 | W18: =Working!$K46 -> 110 | Y18: =Working!$K46 -> 110
A19: = | C19: =Working!$AB6 -> 3 | F19: = | H19: =Working!$AB16 -> 1 | K19: = | M19: =Working!$AB26 -> 28 | P19: = | R19: =Working!$AB36 -> 51 | U19: = | W19: =Working!$AB46 -> 29
C20: =Working!$AB7 -> 24 | H20: =Working!$AB17 -> 66 | M20: =Working!$AB27 -> 36 | R20: =Working!$AB37 -> 88 | W20: =Working!$AB47 -> 110
A21: =IF(C21="","","=") -> = | C21: =IF(Working!$AF6=C19,"",Working!$AF6) -> 1 | F21: =IF(H21="","","=") ->  | H21: =IF(Working!$AF16=H19,"",Working!$AF16) ->  | K21: =IF(M21="","","=") -> = | M21: =IF(Working!$AF26=M19,"",Working!$AF26) -> 7 | P21: =IF(R21="","","=") ->  | R21: =IF(Working!$AF36=R19,"",Working!$AF36) ->  | U21: =IF(W21="","","=") ->  | W21: =IF(Working!$AF46=W19,"",Working!$AF46) -> 
C22: =IF(Working!$AF6=C19,"",Working!$AF7) -> 8 | H22: =IF(Working!$AF16=H19,"",Working!$AF17) ->  | M22: =IF(Working!$AF26=M19,"",Working!$AF27) -> 9 | R22: =IF(Working!$AF36=R19,"",Working!$AF37) ->  | W22: =IF(Working!$AF46=W19,"",Working!$AF47) -> 
A23: =IF(AND(C23="",B23=""),"","=") ->  | B23: =IF(Working!AB6=0,"0",IF(Working!$AH6=0,"",Working!$AH6)) ->  | C23: =IF(Working!$AH6=0,"",IF(Working!$AI6=C19,"",Working!$AL6)) ->  | F23: =IF(AND(H23="",G23=""),"","=") ->  | G23: =IF(Working!$AB16=0,"0",IF(Working!$AH16=0,"",Working!$AH16)) ->  | H23: =IF(Working!$AH16=0,"",IF(Working!$AI16=H19,"",Working!$AL16)) ->  | K23: =IF(AND(M23="",L23=""),"","=") ->  | L23: =IF(Working!$AB26=0,"0",IF(Working!$AH26=0,"",Working!$AH26)) ->  | M23: =IF(Working!$AH26=0,"",IF(Working!$AI26=M19,"",Working!$AL26)) ->  | P23: =IF(AND(R23="",Q23=""),"","=") ->  | Q23: =IF(Working!$AB36=0,"0",IF(Working!$AH36=0,"",Working!$AH36)) ->  | R23: =IF(Working!$AH36=0,"",IF(Working!$AI36=R19,"",Working!$AL36)) ->  | U23: =IF(AND(W23="",V23=""),"","=") ->  | V23: =IF(Working!$AB46=0,"0",IF(Working!$AH46=0,"",Working!$AH46)) ->  | W23: =IF(Working!$AH46=0,"",IF(Working!$AI46=W19,"",Working!$AL46)) -> 
C24: =IF(Working!$AH6=0,"",IF(Working!$AI6=C19,"",Working!$AL7)) ->  | H24: =IF(Working!$AH16=0,"",IF(Working!$AI16=H19,"",Working!$AL17)) ->  | M24: =IF(Working!$AH26=0,"",IF(Working!$AI26=M19,"",Working!$AL27)) ->  | R24: =IF(Working!$AH36=0,"",IF(Working!$AI36=R19,"",Working!$AL37)) ->  | W24: =IF(Working!$AH46=0,"",IF(Working!$AI46=W19,"",Working!$AL47)) -> 
A26: =Working!B8 -> 3) | C26: =Working!T8 -> 4 | D26: =Working!$S8 -> - | E26: =Working!V8 -> 5 | F26: =Working!B18 -> 8) | H26: =Working!T18 -> 1 | I26: =Working!$S18 -> - | J26: =Working!V18 -> 3 | K26: =Working!B28 -> 13) | M26: =Working!T28 -> 4 | N26: =Working!$S28 -> - | O26: =Working!V28 -> 3 | P26: =Working!B38 -> 18) | R26: =Working!T38 -> 8 | S26: =Working!$S38 -> - | T26: =Working!V38 -> 10 | U26: =Working!B48 -> 23) | W26: =Working!T48 -> 6 | X26: =Working!$S48 -> - | Y26: =Working!V48 -> 3
C27: =Working!T9 -> 6 | E27: =Working!V9 -> 16 | H27: =Working!T19 -> 3 | J27: =Working!V19 -> 9 | M27: =Working!T29 -> 3 | O27: =Working!V29 -> 7 | R27: =Working!T39 -> 11 | T27: =Working!V39 -> 15 | W27: =Working!T49 -> 7 | Y27: =Working!V49 -> 4
A28: = | C28: =Working!$X8 -> 30 | D28: =Working!$S8 -> - | E28: =Working!$Z8 -> 64 | F28: = | H28: =Working!$X18 -> 9 | I28: =Working!$S18 -> - | J28: =Working!$Z18 -> 9 | K28: = | M28: =Working!$X28 -> 28 | N28: =Working!$S28 -> - | O28: =Working!$Z28 -> 9 | P28: = | R28: =Working!$X38 -> 120 | S28: =Working!$S38 -> - | T28: =Working!$Z38 -> 110 | U28: = | W28: =Working!$X48 -> 21 | X28: =Working!$S48 -> - | Y28: =Working!$Z48 -> 24
C29: =Working!$K8 -> 96 | E29: =Working!$K8 -> 96 | H29: =Working!$K18 -> 27 | J29: =Working!$K18 -> 27 | M29: =Working!$K28 -> 21 | O29: =Working!$K28 -> 21 | R29: =Working!$K38 -> 165 | T29: =Working!$K38 -> 165 | W29: =Working!$K48 -> 28 | Y29: =Working!$K48 -> 28
A30: = | C30: =Working!$AB8 -> 34 | F30: = | H30: =Working!$AB18 -> 0 | K30: = | M30: =Working!$AB28 -> 19 | P30: = | R30: =Working!$AB38 -> 10 | U30: = | W30: =Working!$AB48 -> 3
C31: =Working!$AB9 -> 96 | H31: =Working!$AB19 -> 27 | M31: =Working!$AB29 -> 21 | R31: =Working!$AB39 -> 165 | W31: =Working!$AB49 -> 28
A32: =IF(C32="","","=") -> = | C32: =IF(Working!$AF8=C30,"",Working!$AF8) -> 17 | F32: =IF(H32="","","=") ->  | H32: =IF(Working!$AF18=H30,"",Working!$AF18) ->  | K32: =IF(M32="","","=") ->  | M32: =IF(Working!$AF28=M30,"",Working!$AF28) ->  | P32: =IF(R32="","","=") -> = | R32: =IF(Working!$AF38=R30,"",Working!AF38) -> 2 | U32: =IF(W32="","","=") ->  | W32: =IF(Working!$AF48=W30,"",Working!$AF48) -> 
C33: =IF(Working!$AF8=C30,"",Working!$AF9) -> 48 | H33: =IF(Working!$AF18=H30,"",Working!$AF19) ->  | M33: =IF(Working!$AF28=M30,"",Working!$AF29) ->  | R33: =IF(Working!$AF38=R30,"",Working!$AF39) -> 33 | W33: =IF(Working!$AF48=W30,"",Working!$AF49) -> 
A34: =IF(AND(C34="",B34=""),"","=") ->  | B34: =IF(Working!AB8=0,"0",IF(Working!$AH8=0,"",Working!$AH8)) ->  | C34: =IF(Working!$AH8=0,"",IF(Working!$AI8=C30,"",Working!$AL8)) ->  | F34: =IF(AND(H34="",G34=""),"","=") -> = | G34: =IF(Working!$AB18=0,"0",IF(Working!$AH18=0,"",Working!$AH18)) -> 0 | H34: =IF(Working!$AI18=0,"",IF(Working!$AI18=H30,"",Working!$AL18)) ->  | K34: =IF(AND(M34="",L34=""),"","=") ->  | L34: =IF(Working!$AB28=0,"0",IF(Working!$AH28=0,"",Working!$AH28)) ->  | M34: =IF(Working!$AI28=0,"",IF(Working!$AI28=M30,"",Working!$AL28)) ->  | P34: =IF(AND(R34="",Q34=""),"","=") ->  | Q34: =IF(Working!$AB38=0,"0",IF(Working!$AH38=0,"",Working!$AH38)) ->  | R34: =IF(Working!$AI38=0,"",IF(Working!$AI38=R30,"",Working!$AL38)) ->  | U34: =IF(AND(W34="",V34=""),"","=") ->  | V34: =IF(Working!$AB48=0,"0",IF(Working!$AH48=0,"",Working!$AH48)) ->  | W34: =IF(Working!$AI48=0,"",IF(Working!$AI48=W30,"",Working!$AL48)) -> 
C35: =IF(Working!$AH8=0,"",IF(Working!$AI8=C30,"",Working!$AL9)) ->  | H35: =IF(Working!$AI18=0,"",IF(Working!$AI18=H30,"",Working!$AL19)) ->  | M35: =IF(Working!$AI28=0,"",IF(Working!$AI28=M30,"",Working!$AL29)) ->  | R35: =IF(Working!$AI38=0,"",IF(Working!$AI38=R30,"",Working!$AL39)) ->  | W35: =IF(Working!$AI48=0,"",IF(Working!$AI48=W30,"",Working!$AL49)) -> 
A37: =Working!B10 -> 4) | C37: =Working!T10 -> 18 | D37: =Working!$S10 -> - | E37: =Working!V10 -> 12 | F37: =Working!B20 -> 9) | H37: =Working!T20 -> 17 | I37: =Working!$S20 -> - | J37: =Working!V20 -> 6 | K37: =Working!B30 -> 14) | M37: =Working!T30 -> 4 | N37: =Working!$S30 -> - | O37: =Working!V30 -> 8 | P37: =Working!B40 -> 19) | R37: =Working!T40 -> 13 | S37: =Working!$S40 -> - | T37: =Working!V40 -> 14 | U37: =Working!B50 -> 24) | W37: =Working!T50 -> 11 | X37: =Working!$S50 -> - | Y37: =Working!V50 -> 13
C38: =Working!T11 -> 10 | E38: =Working!V11 -> 15 | H38: =Working!T21 -> 10 | J38: =Working!V21 -> 7 | M38: =Working!T31 -> 7 | O38: =Working!V31 -> 15 | R38: =Working!T41 -> 8 | T38: =Working!V41 -> 15 | W38: =Working!T51 -> 9 | Y38: =Working!V51 -> 12
A39: = | C39: =Working!$X10 -> 270 | D39: =Working!$S10 -> - | E39: =Working!$Z10 -> 120 | F39: = | H39: =Working!$X20 -> 119 | I39: =Working!$S20 -> - | J39: =Working!$Z20 -> 60 | K39: = | M39: =Working!$X30 -> 56 | N39: =Working!$S30 -> - | O39: =Working!$Z30 -> 60 | P39: = | R39: =Working!$X40 -> 195 | S39: =Working!$S40 -> - | T39: =Working!$Z40 -> 112 | U39: = | W39: =Working!$X50 -> 132 | X39: =Working!$S50 -> - | Y39: =Working!$Z50 -> 117
C40: =Working!$K10 -> 150 | E40: =Working!$K10 -> 150 | H40: =Working!$K20 -> 70 | J40: =Working!$K20 -> 70 | M40: =Working!$K30 -> 105 | O40: =Working!$K30 -> 105 | R40: =Working!$K30 -> 105 | T40: =Working!$K30 -> 105 | W40: =Working!$K50 -> 108 | Y40: =Working!$K50 -> 108
A41: = | C41: =Working!$AB10 -> 150 | F41: = | H41: =Working!$AB20 -> 59 | K41: = | M41: =Working!$AB30 -> 4 | P41: = | R41: =Working!$AB40 -> 83 | U41: = | W41: =Working!$AB50 -> 15
C42: =Working!$AB11 -> 150 | H42: =Working!$AB21 -> 70 | M42: =Working!$AB30 -> 4 | R42: =Working!$AB31 -> 105 | W42: =Working!$AB51 -> 108
A43: =IF(C43="","","=") -> = | C43: =IF(Working!$AF10=C41,"",Working!$AF10) -> 1 | F43: =IF(H43="","","=") ->  | H43: =IF(Working!$AF20=H41,"",Working!$AF20) ->  | K43: =IF(M43="","","=") ->  | M43: =IF(Working!$AF30=M41,"",Working!$AF30) ->  | P43: =IF(R43="","","=") ->  | R43: =IF(Working!$AF40=R41,"",Working!$AF40) ->  | U43: =IF(W43="","","=") -> = | W43: =IF(Working!$AF50=W41,"",Working!$AF50) -> 5
C44: =IF(Working!$AF10=C41,"",Working!$AF11) -> 1 | H44: =IF(Working!$AF20=H41,"",Working!$AF21) ->  | M44: =IF(Working!$AF30=M41,"",Working!$AF31) ->  | R44: =IF(Working!$AF40=R41,"",Working!$AF41) ->  | W44: =IF(Working!$AF50=W41,"",Working!$AF51) -> 36
A45: =IF(AND(C45="",B45=""),"","=") -> = | B45: =IF(Working!AB10=0,"0",IF(Working!$AH10=0,"",Working!$AH10)) -> 1 | C45: =IF(Working!$AI10=0,"",IF(Working!$AI10=C41,"",Working!$AL10)) ->  | F45: =IF(AND(H45="",G45=""),"","=") ->  | G45: =IF(Working!$AB20=0,"0",IF(Working!$AH20=0,"",Working!$AH20)) ->  | H45: =IF(Working!$AH20=0,"",IF(Working!$AI20=H41,"",Working!$AL20)) ->  | K45: =IF(AND(M45="",L45=""),"","=") ->  | L45: =IF(Working!$AB30=0,"0",IF(Working!$AH30=0,"",Working!$AH30)) ->  | M45: =IF(Working!$AH30=0,"",IF(Working!$AI30=M41,"",Working!$AL30)) ->  | P45: =IF(AND(R45="",Q45=""),"","=") ->  | Q45: =IF(Working!$AB40=0,"0",IF(Working!$AH40=0,"",Working!$AH40)) ->  | R45: =IF(Working!$AH40=0,"",IF(Working!$AI40=R41,"",Working!$AL40)) ->  | U45: =IF(AND(W45="",V45=""),"","=") ->  | V45: =IF(Working!$AB50=0,"0",IF(Working!$AH50=0,"",Working!$AH50)) ->  | W45: =IF(Working!$AH50=0,"",IF(Working!$AI50=W41,"",Working!$AL50)) -> 
C46: =IF(Working!$AI10=0,"",IF(Working!$AI10=C41,"",Working!$AL11)) -> 1 | H46: =IF(Working!$AH20=0,"",IF(Working!$AI20=H41,"",Working!$AL21)) ->  | M46: =IF(Working!$AH30=0,"",IF(Working!$AI30=M41,"",Working!$AL31)) ->  | R46: =IF(Working!$AH40=0,"",IF(Working!$AI40=R41,"",Working!$AL41)) ->  | W46: =IF(Working!$AH50=0,"",IF(Working!$AI50=W41,"",Working!$AL51)) -> 
A48: =Working!B12 -> 5) | C48: =Working!T12 -> 5 | D48: =Working!$S12 -> - | E48: =Working!V12 -> 1 | F48: =Working!B22 -> 10) | H48: =Working!T22 -> 11 | I48: =Working!$S22 -> - | J48: =Working!V22 -> 6 | K48: =Working!B32 -> 15) | M48: =Working!T32 -> 23 | N48: =Working!$S32 -> - | O48: =Working!V32 -> 6 | P48: =Working!B42 -> 20) | R48: =Working!T42 -> 25 | S48: =Working!$S42 -> - | T48: =Working!V42 -> 3 | U48: =Working!B52 -> 25) | W48: =Working!T52 -> 8 | X48: =Working!$S52 -> - | Y48: =Working!V52 -> 1
C49: =Working!T13 -> 8 | E49: =Working!V13 -> 9 | H49: =Working!T23 -> 15 | J49: =Working!V23 -> 9 | M49: =Working!T33 -> 15 | O49: =Working!V33 -> 12 | R49: =Working!T43 -> 16 | T49: =Working!V43 -> 9 | W49: =Working!T53 -> 8 | Y49: =Working!V53 -> 13
A50: = | C50: =Working!$X12 -> 45 | D50: =Working!$S12 -> - | E50: =Working!$Z12 -> 8 | F50: = | H50: =Working!$X22 -> 90 | I50: =Working!$S22 -> - | J50: =Working!$Z22 -> 99 | K50: = | M50: =Working!$X32 -> 276 | N50: =Working!$S32 -> - | O50: =Working!$Z32 -> 90 | P50: = | R50: =Working!$X42 -> 225 | S50: =Working!$S42 -> - | T50: =Working!$Z42 -> 48 | U50: = | W50: =Working!$X50 -> 132 | X50: =Working!$S52 -> - | Y50: =Working!$Z52 -> 8
C51: =Working!$K12 -> 72 | E51: =Working!$K12 -> 72 | H51: =Working!$K22 -> 135 | J51: =Working!$K22 -> 135 | M51: =Working!$K32 -> 180 | O51: =Working!$K32 -> 180 | R51: =Working!$K42 -> 144 | T51: =Working!$K42 -> 144 | W51: =Working!$K52 -> 104 | Y51: =Working!$K52 -> 104
A52: = | C52: =Working!$AB12 -> 37 | F52: = | H52: =Working!$AB22 -> 9 | K52: = | M52: =Working!$AB32 -> 186 | P52: = | R52: =Working!$AB42 -> 177 | U52: = | W52: =Working!$AB52 -> 96
C53: =Working!$AB13 -> 72 | H53: =Working!$AB23 -> 135 | M53: =Working!$AB33 -> 180 | R53: =Working!$AB43 -> 144 | W53: =Working!$AB53 -> 104
A54: =IF(C54="","","=") ->  | C54: =IF(Working!$AF12=C52,"",Working!$AF12) ->  | F54: =IF(H54="","","=") -> = | H54: =IF(Working!$AF22=H52,"",Working!$AF22) -> 1 | K54: =IF(M54="","","=") -> = | M54: =IF(Working!$AF32=M52,"",Working!$AF32) -> 31 | P54: =IF(R54="","","=") -> = | R54: =IF(Working!$AF42=R52,"",Working!$AF42) -> 59 | U54: =IF(W54="","","=") -> = | W54: =IF(Working!$AF52=W52,"",Working!$AF52) -> 12
C55: =IF(Working!$AF12=C52,"",Working!$AF13) ->  | H55: =IF(Working!$AF22=H52,"",Working!$AF23) -> 15 | M55: =IF(Working!$AF32=M52,"",Working!$AF33) -> 30 | R55: =IF(Working!$AF42=R52,"",Working!$AF43) -> 48 | W55: =IF(Working!$AF52=W52,"",Working!$AF53) -> 13
A56: =IF(AND(C56="",B56=""),"","=") ->  | B56: =IF(Working!AB12=0,"0",IF(Working!$AH12=0,"",Working!$AH12)) ->  | C56: =IF(Working!$AH12=0,"",IF(Working!$AI12=C52,"",Working!$AL12)) ->  | F56: =IF(AND(H56="",G56=""),"","=") ->  | G56: =IF(Working!$AB22=0,"0",IF(Working!$AH22=0,"",Working!$AH22)) ->  | H56: =IF(Working!$AH22=0,"",IF(Working!$AI22=H52,"",Working!$AL22)) ->  | K56: =IF(AND(M56="",L56=""),"","=") -> = | L56: =IF(Working!$AB32=0,"0",IF(Working!$AH32=0,"",Working!$AH32)) -> 1 | M56: =IF(Working!$AH32=0,"",IF(Working!$AI32=M52,"",Working!$AL32)) -> 1 | P56: =IF(AND(R56="",Q56=""),"","=") -> = | Q56: =IF(Working!$AB42=0,"0",IF(Working!$AH42=0,"",Working!$AH42)) -> 1 | R56: =IF(Working!$AH42=0,"",IF(Working!$AI42=R52,"",Working!$AL42)) -> 11 | U56: =IF(AND(W56="",V56=""),"","=") ->  | V56: =IF(Working!$AB52=0,"0",IF(Working!$AH52=0,"",Working!$AH52)) ->  | W56: =IF(Working!$AH52=0,"",IF(Working!$AI52=W52,"",Working!$AL52)) -> 
C57: =IF(Working!$AH12=0,"",IF(Working!$AI12=C52,"",Working!$AL13)) ->  | H57: =IF(Working!$AH22=0,"",IF(Working!$AI22=H52,"",Working!$AL23)) ->  | M57: =IF(Working!$AH32=0,"",IF(Working!$AI32=M52,"",Working!$AL33)) -> 30 | R57: =IF(Working!$AH42=0,"",IF(Working!$AI42=R52,"",Working!$AL43)) -> 48 | W57: =IF(Working!$AH52=0,"",IF(Working!$AI52=W52,"",Working!$AL53)) -> 

Sheet Working (hidden)
A1: =INT(900*RAND()+100) -> 391 | H1: =TEXT(A1,0) -> 391 | J1: AFS - | M1: SUBTRACTION OF FRACTIONS | N1: SUBTRACTION OF FRACTIONS | Q1: Max | R1: 3
H2: 1st Fraction | I2: 2nd Fraction | J2: 2nd Fraction | K2: Common | N2: 1st Fraction | Q2: 2nd Fraction | R2: Operation | T2: Subtraction swap | AG2: Looks for 1/1
H3: b | J3: d | N3: a | P3: c
A4: 1 | B4: =CONCATENATE(A4,")") -> 1) | C4: =IF($R$1=1,INT(5*RAND()),IF($R$1=2,INT(7*RAND()),INT(16*RAND()+1))) -> 16 | D4: =IF($R$1=1,INT(5*RAND()),IF($R$1=2,INT(7*RAND()),INT(16*RAND()+1))) -> 3 | E4: =IF(D4=C4,IF($R$1=1,INT(5*RAND()),IF($R$1=2,INT(7*RAND()),INT(16*RAND()+1))),D4) -> 3 | F4: =IF(E4=C4,IF($R$1=1,INT(5*RAND()),IF($R$1=2,INT(7*RAND()),INT(16*RAND()+1))),E4) -> 3 | G4: =IF(F4=C4,IF($R$1=1,INT(5*RAND()),IF($R$1=2,INT(7*RAND()),INT(16*RAND()+1))),F4) -> 3 | H4: =IF(C4=0,2,IF(C4=1,4,IF(C4=2,5,IF(C4=3,8,IF(C4=4,10,IF(C4=5,3,IF(C4=6,6,C4))))))) -> 16 | I4: =IF(G4=0,2,IF(G4=1,4,IF(G4=2,5,IF(G4=3,8,IF(G4=4,10,IF(G4=5,3,IF(G4=6,6,G4))))))) -> 8 | J4: =IF(I4=H4,I4+1,I4) -> 8 | K4: =H4*J4 -> 128 | L4: =IF(H4=2,1,INT(((K4-1)*RAND())/(I4-1))) -> 0 | M4: =IF(L4=H4,L4+1,L4) -> 0 | N4: =IF(M4=0,1,M4) -> 1 | O4: =N4*J4 -> 8 | P4: =RANDBETWEEN(1,(2*J4-1)) -> 6 | Q4: =P4*H4 -> 96 | R4: 1 | S4: =IF(R4=0,"+","-") -> - | T4: =IF(AND(R4=1,Q4>O4),P4,N4) -> 6 | U4: =S4 -> - | V4: =IF(AND(R4=1,Q4>O4),N4,P4) -> 1 | W4: = | X4: =Q4 -> 96 | Y4: 0 | Z4: =O4 -> 8 | AA4: = | AB4: =IF(R4=0,O4+Q4,ABS(O4-Q4)) -> 88 | AC4: =IF(AB4>=AB5,"Improper","Proper") -> Proper | AE4: =GCD(AB4,AB5) -> 8 | AF4: =AB4/AE4 -> 11 | AH4: =INT(AF4/AF5) -> 0 | AI4: =IF(AB4=AB5,"",AF4-AH4*AF5) -> 11 | AJ4: =AH4 -> 0 | AK4: =AI4 -> 11 | AL4: =IF(AK4=AF4,"",AK4) ->  | AN4: =CONCATENATE(AB4,"/",AB5) -> 88/128 | AO4: = | AP4: =CONCATENATE(AF4,"/",AF5) -> 11/16 | AQ4: = | AR4: =IF(AH4=0,CONCATENATE(AI4,"/",AF5),CONCATENATE(AH4," ",AI4,"/",AF5)) -> 11/16
R5: 1 | S5: =IF(R5=0,"+","-") -> - | T5: =IF(AND(R4=1,Q4>O4),J4,H4) -> 8 | V5: =IF(AND(R4=1,Q4>O4),H4,J4) -> 16 | X5: =K4 -> 128 | Y5: 0 | Z5: =K4 -> 128 | AB5: =K4 -> 128 | AF5: =AB5/AE4 -> 16 | AG5: =IF(AF5=AF4,"",AF5) -> 16 | AK5: =AF5 -> 16 | AL5: =IF(OR(AK4=AF4,AK4=0),"",AK5) -> 
A6: 2 | B6: =CONCATENATE(A6,")") -> 2) | C6: =IF($R$1=1,INT(5*RAND()),IF($R$1=2,INT(7*RAND()),INT(16*RAND()+1))) -> 8 | D6: =IF($R$1=1,INT(5*RAND()),IF($R$1=2,INT(7*RAND()),INT(16*RAND()+1))) -> 5 | E6: =IF(D6=C6,IF($R$1=1,INT(5*RAND()),IF($R$1=2,INT(7*RAND()),INT(16*RAND()+1))),D6) -> 5 | F6: =IF(E6=C6,IF($R$1=1,INT(5*RAND()),IF($R$1=2,INT(7*RAND()),INT(16*RAND()+1))),E6) -> 5 | G6: =IF(F6=C6,IF($R$1=1,INT(5*RAND()),IF($R$1=2,INT(7*RAND()),INT(16*RAND()+1))),F6) -> 5 | H6: =IF(C6=0,2,IF(C6=1,4,IF(C6=2,5,IF(C6=3,8,IF(C6=4,10,IF(C6=5,3,IF(C6=6,6,C6))))))) -> 8 | I6: =IF(G6=0,2,IF(G6=1,4,IF(G6=2,5,IF(G6=3,8,IF(G6=4,10,IF(G6=5,3,IF(G6=6,6,G6))))))) -> 3 | J6: =IF(I6=H6,I6+1,I6) -> 3 | K6: =H6*J6 -> 24 | L6: =IF(H6=2,1,INT(((K6-1)*RAND())/(I6-1))) -> 8 | M6: =IF(L6=H6,L6+1,L6) -> 9 | N6: =IF(M6=0,1,M6) -> 9 | O6: =N6*J6 -> 27 | P6: =RANDBETWEEN(1,(2*J6-1)) -> 3 | Q6: =P6*H6 -> 24 | R6: 1 | S6: - | T6: =IF(AND(R6=1,Q6>O6),P6,N6) -> 9 | U6: =S6 -> - | V6: =IF(AND(R6=1,Q6>O6),N6,P6) -> 3 | W6: = | X6: =Q6 -> 24 | Y6: 0 | Z6: =O6 -> 27 | AA6: = | AB6: =IF(R6=0,O6+Q6,ABS(O6-Q6)) -> 3 | AC6: =IF(AB6>=AB7,"Improper","Proper") -> Proper | AE6: =GCD(AB6,AB7) -> 3 | AF6: =AB6/AE6 -> 1 | AH6: =INT(AF6/AF7) -> 0 | AI6: =IF(AB6=AB7,"",AF6-AH6*AF7) -> 1 | AJ6: =AH6 -> 0 | AK6: =AI6 -> 1 | AL6: =IF(AK6=AF6,"",AK6) ->  | AN6: =CONCATENATE(AB6,"/",AB7) -> 3/24 | AO6: = | AP6: =CONCATENATE(AF6,"/",AF7) -> 1/8 | AQ6: = | AR6: =IF(AH6=0,CONCATENATE(AI6,"/",AF7),CONCATENATE(AH6," ",AI6,"/",AF7)) -> 1/8
R7: 1 | S7: - | T7: =IF(AND(R6=1,Q6>O6),J6,H6) -> 8 | V7: =IF(AND(R6=1,Q6>O6),H6,J6) -> 3 | X7: =K6 -> 24 | Y7: 0 | Z7: =K6 -> 24 | AB7: =K6 -> 24 | AF7: =AB7/AE6 -> 8 | AG7: =IF(AF7=AF6,"",AF7) -> 8 | AK7: =AF7 -> 8 | AL7: =IF(OR(AK6=AF6,AK6=0),"",AK7) -> 
A8: 3 | B8: =CONCATENATE(A8,")") -> 3) | C8: =IF($R$1=1,INT(5*RAND()),IF($R$1=2,INT(7*RAND()),INT(16*RAND()+1))) -> 6 | D8: =IF($R$1=1,INT(5*RAND()),IF($R$1=2,INT(7*RAND()),INT(16*RAND()+1))) -> 16 | E8: =IF(D8=C8,IF($R$1=1,INT(5*RAND()),IF($R$1=2,INT(7*RAND()),INT(16*RAND()+1))),D8) -> 16 | F8: =IF(E8=C8,IF($R$1=1,INT(5*RAND()),IF($R$1=2,INT(7*RAND()),INT(16*RAND()+1))),E8) -> 16 | G8: =IF(F8=C8,IF($R$1=1,INT(5*RAND()),IF($R$1=2,INT(7*RAND()),INT(16*RAND()+1))),F8) -> 16 | H8: =IF(C8=0,2,IF(C8=1,4,IF(C8=2,5,IF(C8=3,8,IF(C8=4,10,IF(C8=5,3,IF(C8=6,6,C8))))))) -> 6 | I8: =IF(G8=0,2,IF(G8=1,4,IF(G8=2,5,IF(G8=3,8,IF(G8=4,10,IF(G8=5,3,IF(G8=6,6,G8))))))) -> 16 | J8: =IF(I8=H8,I8+1,I8) -> 16 | K8: =H8*J8 -> 96 | L8: =IF(H8=2,1,INT(((K8-1)*RAND())/(I8-1))) -> 4 | M8: =IF(L8=H8,L8+1,L8) -> 4 | N8: =IF(M8=0,1,M8) -> 4 | O8: =N8*J8 -> 64 | P8: =RANDBETWEEN(1,(2*J8-1)) -> 5 | Q8: =P8*H8 -> 30 | R8: 1 | S8: - | T8: =IF(AND(R8=1,Q8>O8),P8,N8) -> 4 | U8: =S8 -> - | V8: =IF(AND(R8=1,Q8>O8),N8,P8) -> 5 | W8: = | X8: =Q8 -> 30 | Y8: 0 | Z8: =O8 -> 64 | AA8: = | AB8: =IF(R8=0,O8+Q8,ABS(O8-Q8)) -> 34 | AC8: =IF(AB8>=AB9,"Improper","Proper") -> Proper | AE8: =GCD(AB8,AB9) -> 2 | AF8: =AB8/AE8 -> 17 | AH8: =INT(AF8/AF9) -> 0 | AI8: =IF(AB8=AB9,"",AF8-AH8*AF9) -> 17 | AJ8: =AH8 -> 0 | AK8: =AI8 -> 17 | AL8: =IF(AK8=AF8,"",AK8) ->  | AN8: =CONCATENATE(AB8,"/",AB9) -> 34/96 | AO8: = | AP8: =CONCATENATE(AF8,"/",AF9) -> 17/48 | AQ8: = | AR8: =IF(AH8=0,CONCATENATE(AI8,"/",AF9),CONCATENATE(AH8," ",AI8,"/",AF9)) -> 17/48
R9: 1 | S9: - | T9: =IF(AND(R8=1,Q8>O8),J8,H8) -> 6 | V9: =IF(AND(R8=1,Q8>O8),H8,J8) -> 16 | X9: =K8 -> 96 | Y9: 0 | Z9: =K8 -> 96 | AB9: =K8 -> 96 | AF9: =AB9/AE8 -> 48 | AG9: =IF(AF9=AF8,"",AF9) -> 48 | AK9: =AF9 -> 48 | AL9: =IF(OR(AK8=AF8,AK8=0),"",AK9) -> 
A10: 4 | B10: =CONCATENATE(A10,")") -> 4) | C10: =IF($R$1=1,INT(5*RAND()),IF($R$1=2,INT(7*RAND()),INT(16*RAND()+1))) -> 15 | D10: =IF($R$1=1,INT(5*RAND()),IF($R$1=2,INT(7*RAND()),INT(16*RAND()+1))) -> 4 | E10: =IF(D10=C10,IF($R$1=1,INT(5*RAND()),IF($R$1=2,INT(7*RAND()),INT(16*RAND()+1))),D10) -> 4 | F10: =IF(E10=C10,IF($R$1=1,INT(5*RAND()),IF($R$1=2,INT(7*RAND()),INT(16*RAND()+1))),E10) -> 4 | G10: =IF(F10=C10,IF($R$1=1,INT(5*RAND()),IF($R$1=2,INT(7*RAND()),INT(16*RAND()+1))),F10) -> 4 | H10: =IF(C10=0,2,IF(C10=1,4,IF(C10=2,5,IF(C10=3,8,IF(C10=4,10,IF(C10=5,3,IF(C10=6,6,C10))))))) -> 15 | I10: =IF(G10=0,2,IF(G10=1,4,IF(G10=2,5,IF(G10=3,8,IF(G10=4,10,IF(G10=5,3,IF(G10=6,6,G10))))))) -> 10 | J10: =IF(I10=H10,I10+1,I10) -> 10 | K10: =H10*J10 -> 150 | L10: =IF(H10=2,1,INT(((K10-1)*RAND())/(I10-1))) -> 12 | M10: =IF(L10=H10,L10+1,L10) -> 12 | N10: =IF(M10=0,1,M10) -> 12 | O10: =N10*J10 -> 120 | P10: =RANDBETWEEN(1,(2*J10-1)) -> 18 | Q10: =P10*H10 -> 270 | R10: 1 | S10: - | T10: =IF(AND(R10=1,Q10>O10),P10,N10) -> 18 | U10: =S10 -> - | V10: =IF(AND(R10=1,Q10>O10),N10,P10) -> 12 | W10: = | X10: =Q10 -> 270 | Y10: 0 | Z10: =O10 -> 120 | AA10: = | AB10: =IF(R10=0,O10+Q10,ABS(O10-Q10)) -> 150 | AC10: =IF(AB10>=AB11,"Improper","Proper") -> Improper | AE10: =GCD(AB10,AB11) -> 150 | AF10: =AB10/AE10 -> 1 | AH10: =INT(AF10/AF11) -> 1 | AI10: =IF(AB10=AB11,"",AF10-AH10*AF11) ->  | AJ10: =AH10 -> 1 | AK10: =AI10 ->  | AL10: =IF(AK10=AF10,"",AK10) ->  | AN10: =CONCATENATE(AB10,"/",AB11) -> 150/150 | AO10: = | AP10: =CONCATENATE(AF10,"/",AF11) -> 1/1 | AQ10: = | AR10: =IF(AH10=0,CONCATENATE(AI10,"/",AF11),CONCATENATE(AH10," ",AI10,"/",AF11)) -> 1 /1
R11: 1 | S11: - | T11: =IF(AND(R10=1,Q10>O10),J10,H10) -> 10 | V11: =IF(AND(R10=1,Q10>O10),H10,J10) -> 15 | X11: =K10 -> 150 | Y11: 0 | Z11: =K10 -> 150 | AB11: =K10 -> 150 | AF11: =AB11/AE10 -> 1 | AG11: =IF(AF11=AF10,"",AF11) ->  | AK11: =AF11 -> 1 | AL11: =IF(OR(AK10=AF10,AK10=0),"",AK11) -> 1
A12: 5 | B12: =CONCATENATE(A12,")") -> 5) | C12: =IF($R$1=1,INT(5*RAND()),IF($R$1=2,INT(7*RAND()),INT(16*RAND()+1))) -> 9 | D12: =IF($R$1=1,INT(5*RAND()),IF($R$1=2,INT(7*RAND()),INT(16*RAND()+1))) -> 3 | E12: =IF(D12=C12,IF($R$1=1,INT(5*RAND()),IF($R$1=2,INT(7*RAND()),INT(16*RAND()+1))),D12) -> 3 | F12: =IF(E12=C12,IF($R$1=1,INT(5*RAND()),IF($R$1=2,INT(7*RAND()),INT(16*RAND()+1))),E12) -> 3 | G12: =IF(F12=C12,IF($R$1=1,INT(5*RAND()),IF($R$1=2,INT(7*RAND()),INT(16*RAND()+1))),F12) -> 3 | H12: =IF(C12=0,2,IF(C12=1,4,IF(C12=2,5,IF(C12=3,8,IF(C12=4,10,IF(C12=5,3,IF(C12=6,6,C12))))))) -> 9 | I12: =IF(G12=0,2,IF(G12=1,4,IF(G12=2,5,IF(G12=3,8,IF(G12=4,10,IF(G12=5,3,IF(G12=6,6,G12))))))) -> 8 | J12: =IF(I12=H12,I12+1,I12) -> 8 | K12: =H12*J12 -> 72 | L12: =IF(H12=2,1,INT(((K12-1)*RAND())/(I12-1))) -> 1 | M12: =IF(L12=H12,L12+1,L12) -> 1 | N12: =IF(M12=0,1,M12) -> 1 | O12: =N12*J12 -> 8 | P12: =RANDBETWEEN(1,(2*J12-1)) -> 5 | Q12: =P12*H12 -> 45 | R12: 1 | S12: - | T12: =IF(AND(R12=1,Q12>O12),P12,N12) -> 5 | U12: =S12 -> - | V12: =IF(AND(R12=1,Q12>O12),N12,P12) -> 1 | W12: = | X12: =Q12 -> 45 | Y12: 0 | Z12: =O12 -> 8 | AA12: = | AB12: =IF(R12=0,O12+Q12,ABS(O12-Q12)) -> 37 | AC12: =IF(AB12>=AB13,"Improper","Proper") -> Proper | AE12: =GCD(AB12,AB13) -> 1 | AF12: =AB12/AE12 -> 37 | AH12: =INT(AF12/AF13) -> 0 | AI12: =IF(AB12=AB13,"",AF12-AH12*AF13) -> 37 | AJ12: =AH12 -> 0 | AK12: =AI12 -> 37 | AL12: =IF(AK12=AF12,"",AK12) ->  | AN12: =CONCATENATE(AB12,"/",AB13) -> 37/72 | AO12: = | AP12: =CONCATENATE(AF12,"/",AF13) -> 37/72 | AQ12: = | AR12: =IF(AH12=0,CONCATENATE(AI12,"/",AF13),CONCATENATE(AH12," ",AI12,"/",AF13)) -> 37/72
R13: 1 | S13: - | T13: =IF(AND(R12=1,Q12>O12),J12,H12) -> 8 | V13: =IF(AND(R12=1,Q12>O12),H12,J12) -> 9 | X13: =K12 -> 72 | Y13: 0 | Z13: =K12 -> 72 | AB13: =K12 -> 72 | AF13: =AB13/AE12 -> 72 | AG13: =IF(AF13=AF12,"",AF13) -> 72 | AK13: =AF13 -> 72 | AL13: =IF(OR(AK12=AF12,AK12=0),"",AK13) -> 
A14: 6 | B14: =CONCATENATE(A14,")") -> 6) | C14: =IF($R$1=1,INT(5*RAND()),IF($R$1=2,INT(7*RAND()),INT(16*RAND()+1))) -> 3 | D14: =IF($R$1=1,INT(5*RAND()),IF($R$1=2,INT(7*RAND()),INT(16*RAND()+1))) -> 13 | E14: =IF(D14=C14,IF($R$1=1,INT(5*RAND()),IF($R$1=2,INT(7*RAND()),INT(16*RAND()+1))),D14) -> 13 | F14: =IF(E14=C14,IF($R$1=1,INT(5*RAND()),IF($R$1=2,INT(7*RAND()),INT(16*RAND()+1))),E14) -> 13 | G14: =IF(F14=C14,IF($R$1=1,INT(5*RAND()),IF($R$1=2,INT(7*RAND()),INT(16*RAND()+1))),F14) -> 13 | H14: =IF(C14=0,2,IF(C14=1,4,IF(C14=2,5,IF(C14=3,8,IF(C14=4,10,IF(C14=5,3,IF(C14=6,6,C14))))))) -> 8 | I14: =IF(G14=0,2,IF(G14=1,4,IF(G14=2,5,IF(G14=3,8,IF(G14=4,10,IF(G14=5,3,IF(G14=6,6,G14))))))) -> 13 | J14: =IF(I14=H14,I14+1,I14) -> 13 | K14: =H14*J14 -> 104 | L14: =IF(H14=2,1,INT(((K14-1)*RAND())/(I14-1))) -> 3 | M14: =IF(L14=H14,L14+1,L14) -> 3 | N14: =IF(M14=0,1,M14) -> 3 | O14: =N14*J14 -> 39 | P14: =RANDBETWEEN(1,(2*J14-1)) -> 17 | Q14: =P14*H14 -> 136 | R14: 1 | S14: - | T14: =IF(AND(R14=1,Q14>O14),P14,N14) -> 17 | U14: =S14 -> - | V14: =IF(AND(R14=1,Q14>O14),N14,P14) -> 3 | W14: = | X14: =Q14 -> 136 | Y14: 0 | Z14: =O14 -> 39 | AA14: = | AB14: =IF(R14=0,O14+Q14,ABS(O14-Q14)) -> 97 | AC14: =IF(AB14>=AB15,"Improper","Proper") -> Proper | AE14: =GCD(AB14,AB15) -> 1 | AF14: =AB14/AE14 -> 97 | AH14: =INT(AF14/AF15) -> 0 | AI14: =IF(AB14=AB15,"",AF14-AH14*AF15) -> 97 | AJ14: =AH14 -> 0 | AK14: =AI14 -> 97 | AL14: =IF(AK14=AF14,"",AK14) ->  | AN14: =CONCATENATE(AB14,"/",AB15) -> 97/104 | AO14: = | AP14: =CONCATENATE(AF14,"/",AF15) -> 97/104 | AQ14: = | AR14: =IF(AH14=0,CONCATENATE(AI14,"/",AF15),CONCATENATE(AH14," ",AI14,"/",AF15)) -> 97/104
R15: 1 | S15: - | T15: =IF(AND(R14=1,Q14>O14),J14,H14) -> 13 | V15: =IF(AND(R14=1,Q14>O14),H14,J14) -> 8 | X15: =K14 -> 104 | Y15: 0 | Z15: =K14 -> 104 | AB15: =K14 -> 104 | AF15: =AB15/AE14 -> 104 | AG15: =IF(AF15=AF14,"",AF15) -> 104 | AK15: =AF15 -> 104 | AL15: =IF(OR(AK14=AF14,AK14=0),"",AK15) -> 
A16: 7 | B16: =CONCATENATE(A16,")") -> 7) | C16: =IF($R$1=1,INT(5*RAND()),IF($R$1=2,INT(7*RAND()),INT(16*RAND()+1))) -> 6 | D16: =IF($R$1=1,INT(5*RAND()),IF($R$1=2,INT(7*RAND()),INT(16*RAND()+1))) -> 11 | E16: =IF(D16=C16,IF($R$1=1,INT(5*RAND()),IF($R$1=2,INT(7*RAND()),INT(16*RAND()+1))),D16) -> 11 | F16: =IF(E16=C16,IF($R$1=1,INT(5*RAND()),IF($R$1=2,INT(7*RAND()),INT(16*RAND()+1))),E16) -> 11 | G16: =IF(F16=C16,IF($R$1=1,INT(5*RAND()),IF($R$1=2,INT(7*RAND()),INT(16*RAND()+1))),F16) -> 11 | H16: =IF(C16=0,2,IF(C16=1,4,IF(C16=2,5,IF(C16=3,8,IF(C16=4,10,IF(C16=5,3,IF(C16=6,6,C16))))))) -> 6 | I16: =IF(G16=0,2,IF(G16=1,4,IF(G16=2,5,IF(G16=3,8,IF(G16=4,10,IF(G16=5,3,IF(G16=6,6,G16))))))) -> 11 | J16: =IF(I16=H16,I16+1,I16) -> 11 | K16: =H16*J16 -> 66 | L16: =IF(H16=2,1,INT(((K16-1)*RAND())/(I16-1))) -> 0 | M16: =IF(L16=H16,L16+1,L16) -> 0 | N16: =IF(M16=0,1,M16) -> 1 | O16: =N16*J16 -> 11 | P16: =RANDBETWEEN(1,(2*J16-1)) -> 2 | Q16: =P16*H16 -> 12 | R16: 1 | S16: - | T16: =IF(AND(R16=1,Q16>O16),P16,N16) -> 2 | U16: =S16 -> - | V16: =IF(AND(R16=1,Q16>O16),N16,P16) -> 1 | W16: = | X16: =Q16 -> 12 | Y16: 0 | Z16: =O16 -> 11 | AA16: = | AB16: =IF(R16=0,O16+Q16,ABS(O16-Q16)) -> 1 | AC16: =IF(AB16>=AB17,"Improper","Proper") -> Proper | AE16: =GCD(AB16,AB17) -> 1 | AF16: =AB16/AE16 -> 1 | AH16: =INT(AF16/AF17) -> 0 | AI16: =IF(AB16=AB17,"",AF16-AH16*AF17) -> 1 | AJ16: =AH16 -> 0 | AK16: =AI16 -> 1 | AL16: =IF(AK16=AF16,"",AK16) ->  | AN16: =CONCATENATE(AB16,"/",AB17) -> 1/66 | AO16: = | AP16: =CONCATENATE(AF16,"/",AF17) -> 1/66 | AQ16: = | AR16: =IF(AH16=0,CONCATENATE(AI16,"/",AF17),CONCATENATE(AH16," ",AI16,"/",AF17)) -> 1/66
R17: 1 | S17: - | T17: =IF(AND(R16=1,Q16>O16),J16,H16) -> 11 | V17: =IF(AND(R16=1,Q16>O16),H16,J16) -> 6 | X17: =K16 -> 66 | Y17: 0 | Z17: =K16 -> 66 | AB17: =K16 -> 66 | AF17: =AB17/AE16 -> 66 | AG17: =IF(AF17=AF16,"",AF17) -> 66 | AK17: =AF17 -> 66 | AL17: =IF(OR(AK16=AF16,AK16=0),"",AK17) -> 
A18: 8 | B18: =CONCATENATE(A18,")") -> 8) | C18: =IF($R$1=1,INT(5*RAND()),IF($R$1=2,INT(7*RAND()),INT(16*RAND()+1))) -> 5 | D18: =IF($R$1=1,INT(5*RAND()),IF($R$1=2,INT(7*RAND()),INT(16*RAND()+1))) -> 9 | E18: =IF(D18=C18,IF($R$1=1,INT(5*RAND()),IF($R$1=2,INT(7*RAND()),INT(16*RAND()+1))),D18) -> 9 | F18: =IF(E18=C18,IF($R$1=1,INT(5*RAND()),IF($R$1=2,INT(7*RAND()),INT(16*RAND()+1))),E18) -> 9 | G18: =IF(F18=C18,IF($R$1=1,INT(5*RAND()),IF($R$1=2,INT(7*RAND()),INT(16*RAND()+1))),F18) -> 9 | H18: =IF(C18=0,2,IF(C18=1,4,IF(C18=2,5,IF(C18=3,8,IF(C18=4,10,IF(C18=5,3,IF(C18=6,6,C18))))))) -> 3 | I18: =IF(G18=0,2,IF(G18=1,4,IF(G18=2,5,IF(G18=3,8,IF(G18=4,10,IF(G18=5,3,IF(G18=6,6,G18))))))) -> 9 | J18: =IF(I18=H18,I18+1,I18) -> 9 | K18: =H18*J18 -> 27 | L18: =IF(H18=2,1,INT(((K18-1)*RAND())/(I18-1))) -> 1 | M18: =IF(L18=H18,L18+1,L18) -> 1 | N18: =IF(M18=0,1,M18) -> 1 | O18: =N18*J18 -> 9 | P18: =RANDBETWEEN(1,(2*J18-1)) -> 3 | Q18: =P18*H18 -> 9 | R18: 1 | S18: - | T18: =IF(AND(R18=1,Q18>O18),P18,N18) -> 1 | U18: =S18 -> - | V18: =IF(AND(R18=1,Q18>O18),N18,P18) -> 3 | W18: = | X18: =Q18 -> 9 | Y18: 0 | Z18: =O18 -> 9 | AA18: = | AB18: =IF(R18=0,O18+Q18,ABS(O18-Q18)) -> 0 | AC18: =IF(AB18>=AB19,"Improper","Proper") -> Proper | AE18: =GCD(AB18,AB19) -> 27 | AF18: =AB18/AE18 -> 0 | AH18: =INT(AF18/AF19) -> 0 | AI18: =IF(AB18=AB19,"",AF18-AH18*AF19) -> 0 | AJ18: =AH18 -> 0 | AK18: =AI18 -> 0 | AL18: =IF(AK18=AF18,"",AK18) ->  | AN18: =CONCATENATE(AB18,"/",AB19) -> 0/27 | AO18: = | AP18: =CONCATENATE(AF18,"/",AF19) -> 0/1 | AQ18: = | AR18: =IF(AH18=0,CONCATENATE(AI18,"/",AF19),CONCATENATE(AH18," ",AI18,"/",AF19)) -> 0/1
R19: 1 | S19: - | T19: =IF(AND(R18=1,Q18>O18),J18,H18) -> 3 | V19: =IF(AND(R18=1,Q18>O18),H18,J18) -> 9 | X19: =K18 -> 27 | Y19: 0 | Z19: =K18 -> 27 | AB19: =K18 -> 27 | AF19: =AB19/AE18 -> 1 | AG19: =IF(AF19=AF18,"",AF19) -> 1 | AK19: =AF19 -> 1 | AL19: =IF(OR(AK18=AF18,AK18=0),"",AK19) -> 
A20: 9 | B20: =CONCATENATE(A20,")") -> 9) | C20: =IF($R$1=1,INT(5*RAND()),IF($R$1=2,INT(7*RAND()),INT(16*RAND()+1))) -> 7 | D20: =IF($R$1=1,INT(5*RAND()),IF($R$1=2,INT(7*RAND()),INT(16*RAND()+1))) -> 4 | E20: =IF(D20=C20,IF($R$1=1,INT(5*RAND()),IF($R$1=2,INT(7*RAND()),INT(16*RAND()+1))),D20) -> 4 | F20: =IF(E20=C20,IF($R$1=1,INT(5*RAND()),IF($R$1=2,INT(7*RAND()),INT(16*RAND()+1))),E20) -> 4 | G20: =IF(F20=C20,IF($R$1=1,INT(5*RAND()),IF($R$1=2,INT(7*RAND()),INT(16*RAND()+1))),F20) -> 4 | H20: =IF(C20=0,2,IF(C20=1,4,IF(C20=2,5,IF(C20=3,8,IF(C20=4,10,IF(C20=5,3,IF(C20=6,6,C20))))))) -> 7 | I20: =IF(G20=0,2,IF(G20=1,4,IF(G20=2,5,IF(G20=3,8,IF(G20=4,10,IF(G20=5,3,IF(G20=6,6,G20))))))) -> 10 | J20: =IF(I20=H20,I20+1,I20) -> 10 | K20: =H20*J20 -> 70 | L20: =IF(H20=2,1,INT(((K20-1)*RAND())/(I20-1))) -> 6 | M20: =IF(L20=H20,L20+1,L20) -> 6 | N20: =IF(M20=0,1,M20) -> 6 | O20: =N20*J20 -> 60 | P20: =RANDBETWEEN(1,(2*J20-1)) -> 17 | Q20: =P20*H20 -> 119 | R20: 1 | S20: - | T20: =IF(AND(R20=1,Q20>O20),P20,N20) -> 17 | U20: =S20 -> - | V20: =IF(AND(R20=1,Q20>O20),N20,P20) -> 6 | W20: = | X20: =Q20 -> 119 | Y20: 0 | Z20: =O20 -> 60 | AA20: = | AB20: =IF(R20=0,O20+Q20,ABS(O20-Q20)) -> 59 | AC20: =IF(AB20>=AB21,"Improper","Proper") -> Proper | AE20: =GCD(AB20,AB21) -> 1 | AF20: =AB20/AE20 -> 59 | AH20: =INT(AF20/AF21) -> 0 | AI20: =IF(AB20=AB21,"",AF20-AH20*AF21) -> 59 | AJ20: =AH20 -> 0 | AK20: =AI20 -> 59 | AL20: =IF(AK20=AF20,"",AK20) ->  | AN20: =CONCATENATE(AB20,"/",AB21) -> 59/70 | AO20: = | AP20: =CONCATENATE(AF20,"/",AF21) -> 59/70 | AQ20: = | AR20: =IF(AH20=0,CONCATENATE(AI20,"/",AF21),CONCATENATE(AH20," ",AI20,"/",AF21)) -> 59/70
R21: 1 | S21: - | T21: =IF(AND(R20=1,Q20>O20),J20,H20) -> 10 | V21: =IF(AND(R20=1,Q20>O20),H20,J20) -> 7 | X21: =K20 -> 70 | Y21: 0 | Z21: =K20 -> 70 | AB21: =K20 -> 70 | AF21: =AB21/AE20 -> 70 | AG21: =IF(AF21=AF20,"",AF21) -> 70 | AK21: =AF21 -> 70 | AL21: =IF(OR(AK20=AF20,AK20=0),"",AK21) -> 
A22: 10 | B22: =CONCATENATE(A22,")") -> 10) | C22: =IF($R$1=1,INT(5*RAND()),IF($R$1=2,INT(7*RAND()),INT(16*RAND()+1))) -> 15 | D22: =IF($R$1=1,INT(5*RAND()),IF($R$1=2,INT(7*RAND()),INT(16*RAND()+1))) -> 9 | E22: =IF(D22=C22,IF($R$1=1,INT(5*RAND()),IF($R$1=2,INT(7*RAND()),INT(16*RAND()+1))),D22) -> 9 | F22: =IF(E22=C22,IF($R$1=1,INT(5*RAND()),IF($R$1=2,INT(7*RAND()),INT(16*RAND()+1))),E22) -> 9 | G22: =IF(F22=C22,IF($R$1=1,INT(5*RAND()),IF($R$1=2,INT(7*RAND()),INT(16*RAND()+1))),F22) -> 9 | H22: =IF(C22=0,2,IF(C22=1,4,IF(C22=2,5,IF(C22=3,8,IF(C22=4,10,IF(C22=5,3,IF(C22=6,6,C22))))))) -> 15 | I22: =IF(G22=0,2,IF(G22=1,4,IF(G22=2,5,IF(G22=3,8,IF(G22=4,10,IF(G22=5,3,IF(G22=6,6,G22))))))) -> 9 | J22: =IF(I22=H22,I22+1,I22) -> 9 | K22: =H22*J22 -> 135 | L22: =IF(H22=2,1,INT(((K22-1)*RAND())/(I22-1))) -> 11 | M22: =IF(L22=H22,L22+1,L22) -> 11 | N22: =IF(M22=0,1,M22) -> 11 | O22: =N22*J22 -> 99 | P22: =RANDBETWEEN(1,(2*J22-1)) -> 6 | Q22: =P22*H22 -> 90 | R22: 1 | S22: - | T22: =IF(AND(R22=1,Q22>O22),P22,N22) -> 11 | U22: =S22 -> - | V22: =IF(AND(R22=1,Q22>O22),N22,P22) -> 6 | W22: = | X22: =Q22 -> 90 | Y22: 0 | Z22: =O22 -> 99 | AA22: = | AB22: =IF(R22=0,O22+Q22,ABS(O22-Q22)) -> 9 | AC22: =IF(AB22>=AB23,"Improper","Proper") -> Proper | AE22: =GCD(AB22,AB23) -> 9 | AF22: =AB22/AE22 -> 1 | AH22: =INT(AF22/AF23) -> 0 | AI22: =IF(AB22=AB23,"",AF22-AH22*AF23) -> 1 | AJ22: =AH22 -> 0 | AK22: =AI22 -> 1 | AL22: =IF(AK22=AF22,"",AK22) ->  | AN22: =CONCATENATE(AB22,"/",AB23) -> 9/135 | AO22: = | AP22: =CONCATENATE(AF22,"/",AF23) -> 1/15 | AQ22: = | AR22: =IF(AH22=0,CONCATENATE(AI22,"/",AF23),CONCATENATE(AH22," ",AI22,"/",AF23)) -> 1/15
R23: 1 | S23: - | T23: =IF(AND(R22=1,Q22>O22),J22,H22) -> 15 | V23: =IF(AND(R22=1,Q22>O22),H22,J22) -> 9 | X23: =K22 -> 135 | Y23: 0 | Z23: =K22 -> 135 | AB23: =K22 -> 135 | AF23: =AB23/AE22 -> 15 | AG23: =IF(AF23=AF22,"",AF23) -> 15 | AK23: =AF23 -> 15 | AL23: =IF(OR(AK22=AF22,AK22=0),"",AK23) -> 
A24: 11 | B24: =CONCATENATE(A24,")") -> 11) | C24: =IF($R$1=1,INT(5*RAND()),IF($R$1=2,INT(7*RAND()),INT(16*RAND()+1))) -> 12 | D24: =IF($R$1=1,INT(5*RAND()),IF($R$1=2,INT(7*RAND()),INT(16*RAND()+1))) -> 15 | E24: =IF(D24=C24,IF($R$1=1,INT(5*RAND()),IF($R$1=2,INT(7*RAND()),INT(16*RAND()+1))),D24) -> 15 | F24: =IF(E24=C24,IF($R$1=1,INT(5*RAND()),IF($R$1=2,INT(7*RAND()),INT(16*RAND()+1))),E24) -> 15 | G24: =IF(F24=C24,IF($R$1=1,INT(5*RAND()),IF($R$1=2,INT(7*RAND()),INT(16*RAND()+1))),F24) -> 15 | H24: =IF(C24=0,2,IF(C24=1,4,IF(C24=2,5,IF(C24=3,8,IF(C24=4,10,IF(C24=5,3,IF(C24=6,6,C24))))))) -> 12 | I24: =IF(G24=0,2,IF(G24=1,4,IF(G24=2,5,IF(G24=3,8,IF(G24=4,10,IF(G24=5,3,IF(G24=6,6,G24))))))) -> 15 | J24: =IF(I24=H24,I24+1,I24) -> 15 | K24: =H24*J24 -> 180 | L24: =IF(H24=2,1,INT(((K24-1)*RAND())/(I24-1))) -> 6 | M24: =IF(L24=H24,L24+1,L24) -> 6 | N24: =IF(M24=0,1,M24) -> 6 | O24: =N24*J24 -> 90 | P24: =RANDBETWEEN(1,(2*J24-1)) -> 19 | Q24: =P24*H24 -> 228 | R24: 1 | S24: - | T24: =IF(AND(R24=1,Q24>O24),P24,N24) -> 19 | U24: =S24 -> - | V24: =IF(AND(R24=1,Q24>O24),N24,P24) -> 6 | W24: = | X24: =Q24 -> 228 | Y24: 0 | Z24: =O24 -> 90 | AA24: = | AB24: =IF(R24=0,O24+Q24,ABS(O24-Q24)) -> 138 | AC24: =IF(AB24>=AB25,"Improper","Proper") -> Proper | AE24: =GCD(AB24,AB25) -> 6 | AF24: =AB24/AE24 -> 23 | AH24: =INT(AF24/AF25) -> 0 | AI24: =IF(AB24=AB25,"",AF24-AH24*AF25) -> 23 | AJ24: =AH24 -> 0 | AK24: =AI24 -> 23 | AL24: =IF(AK24=AF24,"",AK24) ->  | AN24: =CONCATENATE(AB24,"/",AB25) -> 138/180 | AO24: = | AP24: =CONCATENATE(AF24,"/",AF25) -> 23/30 | AQ24: = | AR24: =IF(AH24=0,CONCATENATE(AI24,"/",AF25),CONCATENATE(AH24," ",AI24,"/",AF25)) -> 23/30
R25: 1 | S25: - | T25: =IF(AND(R24=1,Q24>O24),J24,H24) -> 15 | V25: =IF(AND(R24=1,Q24>O24),H24,J24) -> 12 | X25: =K24 -> 180 | Y25: 0 | Z25: =K24 -> 180 | AB25: =K24 -> 180 | AF25: =AB25/AE24 -> 30 | AG25: =IF(AF25=AF24,"",AF25) -> 30 | AK25: =AF25 -> 30 | AL25: =IF(OR(AK24=AF24,AK24=0),"",AK25) -> 
A26: 12 | B26: =CONCATENATE(A26,")") -> 12) | C26: =IF($R$1=1,INT(5*RAND()),IF($R$1=2,INT(7*RAND()),INT(16*RAND()+1))) -> 9 | D26: =IF($R$1=1,INT(5*RAND()),IF($R$1=2,INT(7*RAND()),INT(16*RAND()+1))) -> 1 | E26: =IF(D26=C26,IF($R$1=1,INT(5*RAND()),IF($R$1=2,INT(7*RAND()),INT(16*RAND()+1))),D26) -> 1 | F26: =IF(E26=C26,IF($R$1=1,INT(5*RAND()),IF($R$1=2,INT(7*RAND()),INT(16*RAND()+1))),E26) -> 1 | G26: =IF(F26=C26,IF($R$1=1,INT(5*RAND()),IF($R$1=2,INT(7*RAND()),INT(16*RAND()+1))),F26) -> 1 | H26: =IF(C26=0,2,IF(C26=1,4,IF(C26=2,5,IF(C26=3,8,IF(C26=4,10,IF(C26=5,3,IF(C26=6,6,C26))))))) -> 9 | I26: =IF(G26=0,2,IF(G26=1,4,IF(G26=2,5,IF(G26=3,8,IF(G26=4,10,IF(G26=5,3,IF(G26=6,6,G26))))))) -> 4 | J26: =IF(I26=H26,I26+1,I26) -> 4 | K26: =H26*J26 -> 36 | L26: =IF(H26=2,1,INT(((K26-1)*RAND())/(I26-1))) -> 2 | M26: =IF(L26=H26,L26+1,L26) -> 2 | N26: =IF(M26=0,1,M26) -> 2 | O26: =N26*J26 -> 8 | P26: =RANDBETWEEN(1,(2*J26-1)) -> 4 | Q26: =P26*H26 -> 36 | R26: 1 | S26: - | T26: =IF(AND(R26=1,Q26>O26),P26,N26) -> 4 | U26: =S26 -> - | V26: =IF(AND(R26=1,Q26>O26),N26,P26) -> 2 | W26: = | X26: =Q26 -> 36 | Y26: 0 | Z26: =O26 -> 8 | AA26: = | AB26: =IF(R26=0,O26+Q26,ABS(O26-Q26)) -> 28 | AC26: =IF(AB26>=AB27,"Improper","Proper") -> Proper | AE26: =GCD(AB26,AB27) -> 4 | AF26: =AB26/AE26 -> 7 | AH26: =INT(AF26/AF27) -> 0 | AI26: =IF(AB26=AB27,"",AF26-AH26*AF27) -> 7 | AJ26: =AH26 -> 0 | AK26: =AI26 -> 7 | AL26: =IF(AK26=AF26,"",AK26) ->  | AN26: =CONCATENATE(AB26,"/",AB27) -> 28/36 | AO26: = | AP26: =CONCATENATE(AF26,"/",AF27) -> 7/9 | AQ26: = | AR26: =IF(AH26=0,CONCATENATE(AI26,"/",AF27),CONCATENATE(AH26," ",AI26,"/",AF27)) -> 7/9
R27: 1 | S27: - | T27: =IF(AND(R26=1,Q26>O26),J26,H26) -> 4 | V27: =IF(AND(R26=1,Q26>O26),H26,J26) -> 9 | X27: =K26 -> 36 | Y27: 0 | Z27: =K26 -> 36 | AB27: =K26 -> 36 | AF27: =AB27/AE26 -> 9 | AG27: =IF(AF27=AF26,"",AF27) -> 9 | AK27: =AF27 -> 9 | AL27: =IF(OR(AK26=AF26,AK26=0),"",AK27) -> 
A28: 13 | B28: =CONCATENATE(A28,")") -> 13) | C28: =IF($R$1=1,INT(5*RAND()),IF($R$1=2,INT(7*RAND()),INT(16*RAND()+1))) -> 7 | D28: =IF($R$1=1,INT(5*RAND()),IF($R$1=2,INT(7*RAND()),INT(16*RAND()+1))) -> 5 | E28: =IF(D28=C28,IF($R$1=1,INT(5*RAND()),IF($R$1=2,INT(7*RAND()),INT(16*RAND()+1))),D28) -> 5 | F28: =IF(E28=C28,IF($R$1=1,INT(5*RAND()),IF($R$1=2,INT(7*RAND()),INT(16*RAND()+1))),E28) -> 5 | G28: =IF(F28=C28,IF($R$1=1,INT(5*RAND()),IF($R$1=2,INT(7*RAND()),INT(16*RAND()+1))),F28) -> 5 | H28: =IF(C28=0,2,IF(C28=1,4,IF(C28=2,5,IF(C28=3,8,IF(C28=4,10,IF(C28=5,3,IF(C28=6,6,C28))))))) -> 7 | I28: =IF(G28=0,2,IF(G28=1,4,IF(G28=2,5,IF(G28=3,8,IF(G28=4,10,IF(G28=5,3,IF(G28=6,6,G28))))))) -> 3 | J28: =IF(I28=H28,I28+1,I28) -> 3 | K28: =H28*J28 -> 21 | L28: =IF(H28=2,1,INT(((K28-1)*RAND())/(I28-1))) -> 3 | M28: =IF(L28=H28,L28+1,L28) -> 3 | N28: =IF(M28=0,1,M28) -> 3 | O28: =N28*J28 -> 9 | P28: =RANDBETWEEN(1,(2*J28-1)) -> 4 | Q28: =P28*H28 -> 28 | R28: 1 | S28: - | T28: =IF(AND(R28=1,Q28>O28),P28,N28) -> 4 | U28: =S28 -> - | V28: =IF(AND(R28=1,Q28>O28),N28,P28) -> 3 | W28: = | X28: =Q28 -> 28 | Y28: 0 | Z28: =O28 -> 9 | AA28: = | AB28: =IF(R28=0,O28+Q28,ABS(O28-Q28)) -> 19 | AC28: =IF(AB28>=AB29,"Improper","Proper") -> Proper | AE28: =GCD(AB28,AB29) -> 1 | AF28: =AB28/AE28 -> 19 | AH28: =INT(AF28/AF29) -> 0 | AI28: =IF(AB28=AB29,"",AF28-AH28*AF29) -> 19 | AJ28: =AH28 -> 0 | AK28: =AI28 -> 19 | AL28: =IF(AK28=AF28,"",AK28) ->  | AN28: =CONCATENATE(AB28,"/",AB29) -> 19/21 | AO28: = | AP28: =CONCATENATE(AF28,"/",AF29) -> 19/21 | AQ28: = | AR28: =IF(AH28=0,CONCATENATE(AI28,"/",AF29),CONCATENATE(AH28," ",AI28,"/",AF29)) -> 19/21
R29: 1 | S29: - | T29: =IF(AND(R28=1,Q28>O28),J28,H28) -> 3 | V29: =IF(AND(R28=1,Q28>O28),H28,J28) -> 7 | X29: =K28 -> 21 | Y29: 0 | Z29: =K28 -> 21 | AB29: =K28 -> 21 | AF29: =AB29/AE28 -> 21 | AG29: =IF(AF29=AF28,"",AF29) -> 21 | AK29: =AF29 -> 21 | AL29: =IF(OR(AK28=AF28,AK28=0),"",AK29) -> 
A30: 14 | B30: =CONCATENATE(A30,")") -> 14) | C30: =IF($R$1=1,INT(5*RAND()),IF($R$1=2,INT(7*RAND()),INT(16*RAND()+1))) -> 7 | D30: =IF($R$1=1,INT(5*RAND()),IF($R$1=2,INT(7*RAND()),INT(16*RAND()+1))) -> 15 | E30: =IF(D30=C30,IF($R$1=1,INT(5*RAND()),IF($R$1=2,INT(7*RAND()),INT(16*RAND()+1))),D30) -> 15 | F30: =IF(E30=C30,IF($R$1=1,INT(5*RAND()),IF($R$1=2,INT(7*RAND()),INT(16*RAND()+1))),E30) -> 15 | G30: =IF(F30=C30,IF($R$1=1,INT(5*RAND()),IF($R$1=2,INT(7*RAND()),INT(16*RAND()+1))),F30) -> 15 | H30: =IF(C30=0,2,IF(C30=1,4,IF(C30=2,5,IF(C30=3,8,IF(C30=4,10,IF(C30=5,3,IF(C30=6,6,C30))))))) -> 7 | I30: =IF(G30=0,2,IF(G30=1,4,IF(G30=2,5,IF(G30=3,8,IF(G30=4,10,IF(G30=5,3,IF(G30=6,6,G30))))))) -> 15 | J30: =IF(I30=H30,I30+1,I30) -> 15 | K30: =H30*J30 -> 105 | L30: =IF(H30=2,1,INT(((K30-1)*RAND())/(I30-1))) -> 4 | M30: =IF(L30=H30,L30+1,L30) -> 4 | N30: =IF(M30=0,1,M30) -> 4 | O30: =N30*J30 -> 60 | P30: =RANDBETWEEN(1,(2*J30-1)) -> 8 | Q30: =P30*H30 -> 56 | R30: 1 | S30: - | T30: =IF(AND(R30=1,Q30>O30),P30,N30) -> 4 | U30: =S30 -> - | V30: =IF(AND(R30=1,Q30>O30),N30,P30) -> 8 | W30: = | X30: =Q30 -> 56 | Y30: 0 | Z30: =O30 -> 60 | AA30: = | AB30: =IF(R30=0,O30+Q30,ABS(O30-Q30)) -> 4 | AC30: =IF(AB30>=AB31,"Improper","Proper") -> Proper | AE30: =GCD(AB30,AB31) -> 1 | AF30: =AB30/AE30 -> 4 | AH30: =INT(AF30/AF31) -> 0 | AI30: =IF(AB30=AB31,"",AF30-AH30*AF31) -> 4 | AJ30: =AH30 -> 0 | AK30: =AI30 -> 4 | AL30: =IF(AK30=AF30,"",AK30) ->  | AN30: =CONCATENATE(AB30,"/",AB31) -> 4/105 | AO30: = | AP30: =CONCATENATE(AF30,"/",AF31) -> 4/105 | AQ30: = | AR30: =IF(AH30=0,CONCATENATE(AI30,"/",AF31),CONCATENATE(AH30," ",AI30,"/",AF31)) -> 4/105
R31: 1 | S31: - | T31: =IF(AND(R30=1,Q30>O30),J30,H30) -> 7 | V31: =IF(AND(R30=1,Q30>O30),H30,J30) -> 15 | X31: =K30 -> 105 | Y31: 0 | Z31: =K30 -> 105 | AB31: =K30 -> 105 | AF31: =AB31/AE30 -> 105 | AG31: =IF(AF31=AF30,"",AF31) -> 105 | AK31: =AF31 -> 105 | AL31: =IF(OR(AK30=AF30,AK30=0),"",AK31) -> 
A32: 15 | B32: =CONCATENATE(A32,")") -> 15) | C32: =IF($R$1=1,INT(5*RAND()),IF($R$1=2,INT(7*RAND()),INT(16*RAND()+1))) -> 12 | D32: =IF($R$1=1,INT(5*RAND()),IF($R$1=2,INT(7*RAND()),INT(16*RAND()+1))) -> 15 | E32: =IF(D32=C32,IF($R$1=1,INT(5*RAND()),IF($R$1=2,INT(7*RAND()),INT(16*RAND()+1))),D32) -> 15 | F32: =IF(E32=C32,IF($R$1=1,INT(5*RAND()),IF($R$1=2,INT(7*RAND()),INT(16*RAND()+1))),E32) -> 15 | G32: =IF(F32=C32,IF($R$1=1,INT(5*RAND()),IF($R$1=2,INT(7*RAND()),INT(16*RAND()+1))),F32) -> 15 | H32: =IF(C32=0,2,IF(C32=1,4,IF(C32=2,5,IF(C32=3,8,IF(C32=4,10,IF(C32=5,3,IF(C32=6,6,C32))))))) -> 12 | I32: =IF(G32=0,2,IF(G32=1,4,IF(G32=2,5,IF(G32=3,8,IF(G32=4,10,IF(G32=5,3,IF(G32=6,6,G32))))))) -> 15 | J32: =IF(I32=H32,I32+1,I32) -> 15 | K32: =H32*J32 -> 180 | L32: =IF(H32=2,1,INT(((K32-1)*RAND())/(I32-1))) -> 6 | M32: =IF(L32=H32,L32+1,L32) -> 6 | N32: =IF(M32=0,1,M32) -> 6 | O32: =N32*J32 -> 90 | P32: =RANDBETWEEN(1,(2*J32-1)) -> 23 | Q32: =P32*H32 -> 276 | R32: 1 | S32: - | T32: =IF(AND(R32=1,Q32>O32),P32,N32) -> 23 | U32: =S32 -> - | V32: =IF(AND(R32=1,Q32>O32),N32,P32) -> 6 | W32: = | X32: =Q32 -> 276 | Y32: 0 | Z32: =O32 -> 90 | AA32: = | AB32: =IF(R32=0,O32+Q32,ABS(O32-Q32)) -> 186 | AC32: =IF(AB32>=AB33,"Improper","Proper") -> Improper | AE32: =GCD(AB32,AB33) -> 6 | AF32: =AB32/AE32 -> 31 | AH32: =INT(AF32/AF33) -> 1 | AI32: =IF(AB32=AB33,"",AF32-AH32*AF33) -> 1 | AJ32: =AH32 -> 1 | AK32: =AI32 -> 1 | AL32: =IF(AK32=AF32,"",AK32) -> 1 | AN32: =CONCATENATE(AB32,"/",AB33) -> 186/180 | AO32: = | AP32: =CONCATENATE(AF32,"/",AF33) -> 31/30 | AQ32: = | AR32: =IF(AH32=0,CONCATENATE(AI32,"/",AF33),CONCATENATE(AH32," ",AI32,"/",AF33)) -> 1 1/30
R33: 1 | S33: - | T33: =IF(AND(R32=1,Q32>O32),J32,H32) -> 15 | V33: =IF(AND(R32=1,Q32>O32),H32,J32) -> 12 | X33: =K32 -> 180 | Y33: 0 | Z33: =K32 -> 180 | AB33: =K32 -> 180 | AF33: =AB33/AE32 -> 30 | AG33: =IF(AF33=AF32,"",AF33) -> 30 | AK33: =AF33 -> 30 | AL33: =IF(OR(AK32=AF32,AK32=0),"",AK33) -> 30
A34: 16 | B34: =CONCATENATE(A34,")") -> 16) | C34: =IF($R$1=1,INT(5*RAND()),IF($R$1=2,INT(7*RAND()),INT(16*RAND()+1))) -> 4 | D34: =IF($R$1=1,INT(5*RAND()),IF($R$1=2,INT(7*RAND()),INT(16*RAND()+1))) -> 8 | E34: =IF(D34=C34,IF($R$1=1,INT(5*RAND()),IF($R$1=2,INT(7*RAND()),INT(16*RAND()+1))),D34) -> 8 | F34: =IF(E34=C34,IF($R$1=1,INT(5*RAND()),IF($R$1=2,INT(7*RAND()),INT(16*RAND()+1))),E34) -> 8 | G34: =IF(F34=C34,IF($R$1=1,INT(5*RAND()),IF($R$1=2,INT(7*RAND()),INT(16*RAND()+1))),F34) -> 8 | H34: =IF(C34=0,2,IF(C34=1,4,IF(C34=2,5,IF(C34=3,8,IF(C34=4,10,IF(C34=5,3,IF(C34=6,6,C34))))))) -> 10 | I34: =IF(G34=0,2,IF(G34=1,4,IF(G34=2,5,IF(G34=3,8,IF(G34=4,10,IF(G34=5,3,IF(G34=6,6,G34))))))) -> 8 | J34: =IF(I34=H34,I34+1,I34) -> 8 | K34: =H34*J34 -> 80 | L34: =IF(H34=2,1,INT(((K34-1)*RAND())/(I34-1))) -> 5 | M34: =IF(L34=H34,L34+1,L34) -> 5 | N34: =IF(M34=0,1,M34) -> 5 | O34: =N34*J34 -> 40 | P34: =RANDBETWEEN(1,(2*J34-1)) -> 6 | Q34: =P34*H34 -> 60 | R34: 1 | S34: - | T34: =IF(AND(R34=1,Q34>O34),P34,N34) -> 6 | U34: =S34 -> - | V34: =IF(AND(R34=1,Q34>O34),N34,P34) -> 5 | W34: = | X34: =Q34 -> 60 | Y34: 0 | Z34: =O34 -> 40 | AA34: = | AB34: =IF(R34=0,O34+Q34,ABS(O34-Q34)) -> 20 | AC34: =IF(AB34>=AB35,"Improper","Proper") -> Proper | AE34: =GCD(AB34,AB35) -> 20 | AF34: =AB34/AE34 -> 1 | AH34: =INT(AF34/AF35) -> 0 | AI34: =IF(AB34=AB35,"",AF34-AH34*AF35) -> 1 | AJ34: =AH34 -> 0 | AK34: =AI34 -> 1 | AL34: =IF(AK34=AF34,"",AK34) ->  | AN34: =CONCATENATE(AB34,"/",AB35) -> 20/80 | AO34: = | AP34: =CONCATENATE(AF34,"/",AF35) -> 1/4 | AQ34: = | AR34: =IF(AH34=0,CONCATENATE(AI34,"/",AF35),CONCATENATE(AH34," ",AI34,"/",AF35)) -> 1/4
R35: 1 | S35: - | T35: =IF(AND(R34=1,Q34>O34),J34,H34) -> 8 | V35: =IF(AND(R34=1,Q34>O34),H34,J34) -> 10 | X35: =K34 -> 80 | Y35: 0 | Z35: =K34 -> 80 | AB35: =K34 -> 80 | AF35: =AB35/AE34 -> 4 | AG35: =IF(AF35=AF34,"",AF35) -> 4 | AK35: =AF35 -> 4 | AL35: =IF(OR(AK34=AF34,AK34=0),"",AK35) -> 
A36: 17 | B36: =CONCATENATE(A36,")") -> 17) | C36: =IF($R$1=1,INT(5*RAND()),IF($R$1=2,INT(7*RAND()),INT(16*RAND()+1))) -> 8 | D36: =IF($R$1=1,INT(5*RAND()),IF($R$1=2,INT(7*RAND()),INT(16*RAND()+1))) -> 11 | E36: =IF(D36=C36,IF($R$1=1,INT(5*RAND()),IF($R$1=2,INT(7*RAND()),INT(16*RAND()+1))),D36) -> 11 | F36: =IF(E36=C36,IF($R$1=1,INT(5*RAND()),IF($R$1=2,INT(7*RAND()),INT(16*RAND()+1))),E36) -> 11 | G36: =IF(F36=C36,IF($R$1=1,INT(5*RAND()),IF($R$1=2,INT(7*RAND()),INT(16*RAND()+1))),F36) -> 11 | H36: =IF(C36=0,2,IF(C36=1,4,IF(C36=2,5,IF(C36=3,8,IF(C36=4,10,IF(C36=5,3,IF(C36=6,6,C36))))))) -> 8 | I36: =IF(G36=0,2,IF(G36=1,4,IF(G36=2,5,IF(G36=3,8,IF(G36=4,10,IF(G36=5,3,IF(G36=6,6,G36))))))) -> 11 | J36: =IF(I36=H36,I36+1,I36) -> 11 | K36: =H36*J36 -> 88 | L36: =IF(H36=2,1,INT(((K36-1)*RAND())/(I36-1))) -> 8 | M36: =IF(L36=H36,L36+1,L36) -> 9 | N36: =IF(M36=0,1,M36) -> 9 | O36: =N36*J36 -> 99 | P36: =RANDBETWEEN(1,(2*J36-1)) -> 6 | Q36: =P36*H36 -> 48 | R36: 1 | S36: - | T36: =IF(AND(R36=1,Q36>O36),P36,N36) -> 9 | U36: =S36 -> - | V36: =IF(AND(R36=1,Q36>O36),N36,P36) -> 6 | W36: = | X36: =Q36 -> 48 | Y36: 0 | Z36: =O36 -> 99 | AA36: = | AB36: =IF(R36=0,O36+Q36,ABS(O36-Q36)) -> 51 | AC36: =IF(AB36>=AB37,"Improper","Proper") -> Proper | AE36: =GCD(AB36,AB37) -> 1 | AF36: =AB36/AE36 -> 51 | AH36: =INT(AF36/AF37) -> 0 | AI36: =IF(AB36=AB37,"",AF36-AH36*AF37) -> 51 | AJ36: =AH36 -> 0 | AK36: =AI36 -> 51 | AL36: =IF(AK36=AF36,"",AK36) ->  | AN36: =CONCATENATE(AB36,"/",AB37) -> 51/88 | AO36: = | AP36: =CONCATENATE(AF36,"/",AF37) -> 51/88 | AQ36: = | AR36: =IF(AH36=0,CONCATENATE(AI36,"/",AF37),CONCATENATE(AH36," ",AI36,"/",AF37)) -> 51/88
R37: 1 | S37: - | T37: =IF(AND(R36=1,Q36>O36),J36,H36) -> 8 | V37: =IF(AND(R36=1,Q36>O36),H36,J36) -> 11 | X37: =K36 -> 88 | Y37: 0 | Z37: =K36 -> 88 | AB37: =K36 -> 88 | AF37: =AB37/AE36 -> 88 | AG37: =IF(AF37=AF36,"",AF37) -> 88 | AK37: =AF37 -> 88 | AL37: =IF(OR(AK36=AF36,AK36=0),"",AK37) -> 
A38: 18 | B38: =CONCATENATE(A38,")") -> 18) | C38: =IF($R$1=1,INT(5*RAND()),IF($R$1=2,INT(7*RAND()),INT(16*RAND()+1))) -> 15 | D38: =IF($R$1=1,INT(5*RAND()),IF($R$1=2,INT(7*RAND()),INT(16*RAND()+1))) -> 11 | E38: =IF(D38=C38,IF($R$1=1,INT(5*RAND()),IF($R$1=2,INT(7*RAND()),INT(16*RAND()+1))),D38) -> 11 | F38: =IF(E38=C38,IF($R$1=1,INT(5*RAND()),IF($R$1=2,INT(7*RAND()),INT(16*RAND()+1))),E38) -> 11 | G38: =IF(F38=C38,IF($R$1=1,INT(5*RAND()),IF($R$1=2,INT(7*RAND()),INT(16*RAND()+1))),F38) -> 11 | H38: =IF(C38=0,2,IF(C38=1,4,IF(C38=2,5,IF(C38=3,8,IF(C38=4,10,IF(C38=5,3,IF(C38=6,6,C38))))))) -> 15 | I38: =IF(G38=0,2,IF(G38=1,4,IF(G38=2,5,IF(G38=3,8,IF(G38=4,10,IF(G38=5,3,IF(G38=6,6,G38))))))) -> 11 | J38: =IF(I38=H38,I38+1,I38) -> 11 | K38: =H38*J38 -> 165 | L38: =IF(H38=2,1,INT(((K38-1)*RAND())/(I38-1))) -> 10 | M38: =IF(L38=H38,L38+1,L38) -> 10 | N38: =IF(M38=0,1,M38) -> 10 | O38: =N38*J38 -> 110 | P38: =RANDBETWEEN(1,(2*J38-1)) -> 8 | Q38: =P38*H38 -> 120 | R38: 1 | S38: - | T38: =IF(AND(R38=1,Q38>O38),P38,N38) -> 8 | U38: =S38 -> - | V38: =IF(AND(R38=1,Q38>O38),N38,P38) -> 10 | W38: = | X38: =Q38 -> 120 | Y38: 0 | Z38: =O38 -> 110 | AA38: = | AB38: =IF(R38=0,O38+Q38,ABS(O38-Q38)) -> 10 | AC38: =IF(AB38>=AB39,"Improper","Proper") -> Proper | AE38: =GCD(AB38,AB39) -> 5 | AF38: =AB38/AE38 -> 2 | AH38: =INT(AF38/AF39) -> 0 | AI38: =IF(AB38=AB39,"",AF38-AH38*AF39) -> 2 | AJ38: =AH38 -> 0 | AK38: =AI38 -> 2 | AL38: =IF(AK38=AF38,"",AK38) ->  | AN38: =CONCATENATE(AB38,"/",AB39) -> 10/165 | AO38: = | AP38: =CONCATENATE(AF38,"/",AF39) -> 2/33 | AQ38: = | AR38: =IF(AH38=0,CONCATENATE(AI38,"/",AF39),CONCATENATE(AH38," ",AI38,"/",AF39)) -> 2/33
R39: 1 | S39: - | T39: =IF(AND(R38=1,Q38>O38),J38,H38) -> 11 | V39: =IF(AND(R38=1,Q38>O38),H38,J38) -> 15 | X39: =K38 -> 165 | Y39: 0 | Z39: =K38 -> 165 | AB39: =K38 -> 165 | AF39: =AB39/AE38 -> 33 | AG39: =IF(AF39=AF38,"",AF39) -> 33 | AK39: =AF39 -> 33 | AL39: =IF(OR(AK38=AF38,AK38=0),"",AK39) -> 
A40: 19 | B40: =CONCATENATE(A40,")") -> 19) | C40: =IF($R$1=1,INT(5*RAND()),IF($R$1=2,INT(7*RAND()),INT(16*RAND()+1))) -> 15 | D40: =IF($R$1=1,INT(5*RAND()),IF($R$1=2,INT(7*RAND()),INT(16*RAND()+1))) -> 8 | E40: =IF(D40=C40,IF($R$1=1,INT(5*RAND()),IF($R$1=2,INT(7*RAND()),INT(16*RAND()+1))),D40) -> 8 | F40: =IF(E40=C40,IF($R$1=1,INT(5*RAND()),IF($R$1=2,INT(7*RAND()),INT(16*RAND()+1))),E40) -> 8 | G40: =IF(F40=C40,IF($R$1=1,INT(5*RAND()),IF($R$1=2,INT(7*RAND()),INT(16*RAND()+1))),F40) -> 8 | H40: =IF(C40=0,2,IF(C40=1,4,IF(C40=2,5,IF(C40=3,8,IF(C40=4,10,IF(C40=5,3,IF(C40=6,6,C40))))))) -> 15 | I40: =IF(G40=0,2,IF(G40=1,4,IF(G40=2,5,IF(G40=3,8,IF(G40=4,10,IF(G40=5,3,IF(G40=6,6,G40))))))) -> 8 | J40: =IF(I40=H40,I40+1,I40) -> 8 | K40: =H40*J40 -> 120 | L40: =IF(H40=2,1,INT(((K40-1)*RAND())/(I40-1))) -> 14 | M40: =IF(L40=H40,L40+1,L40) -> 14 | N40: =IF(M40=0,1,M40) -> 14 | O40: =N40*J40 -> 112 | P40: =RANDBETWEEN(1,(2*J40-1)) -> 13 | Q40: =P40*H40 -> 195 | R40: 1 | S40: - | T40: =IF(AND(R40=1,Q40>O40),P40,N40) -> 13 | U40: =S40 -> - | V40: =IF(AND(R40=1,Q40>O40),N40,P40) -> 14 | W40: = | X40: =Q40 -> 195 | Y40: 0 | Z40: =O40 -> 112 | AA40: = | AB40: =IF(R40=0,O40+Q40,ABS(O40-Q40)) -> 83 | AC40: =IF(AB40>=AB41,"Improper","Proper") -> Proper | AE40: =GCD(AB40,AB41) -> 1 | AF40: =AB40/AE40 -> 83 | AH40: =INT(AF40/AF41) -> 0 | AI40: =IF(AB40=AB41,"",AF40-AH40*AF41) -> 83 | AJ40: =AH40 -> 0 | AK40: =AI40 -> 83 | AL40: =IF(AK40=AF40,"",AK40) ->  | AN40: =CONCATENATE(AB40,"/",AB41) -> 83/120 | AO40: = | AP40: =CONCATENATE(AF40,"/",AF41) -> 83/120 | AQ40: = | AR40: =IF(AH40=0,CONCATENATE(AI40,"/",AF41),CONCATENATE(AH40," ",AI40,"/",AF41)) -> 83/120
R41: 1 | S41: - | T41: =IF(AND(R40=1,Q40>O40),J40,H40) -> 8 | V41: =IF(AND(R40=1,Q40>O40),H40,J40) -> 15 | X41: =K40 -> 120 | Y41: 0 | Z41: =K40 -> 120 | AB41: =K40 -> 120 | AF41: =AB41/AE40 -> 120 | AG41: =IF(AF41=AF40,"",AF41) -> 120 | AK41: =AF41 -> 120 | AL41: =IF(OR(AK40=AF40,AK40=0),"",AK41) -> 
A42: 20 | B42: =CONCATENATE(A42,")") -> 20) | C42: =IF($R$1=1,INT(5*RAND()),IF($R$1=2,INT(7*RAND()),INT(16*RAND()+1))) -> 9 | D42: =IF($R$1=1,INT(5*RAND()),IF($R$1=2,INT(7*RAND()),INT(16*RAND()+1))) -> 16 | E42: =IF(D42=C42,IF($R$1=1,INT(5*RAND()),IF($R$1=2,INT(7*RAND()),INT(16*RAND()+1))),D42) -> 16 | F42: =IF(E42=C42,IF($R$1=1,INT(5*RAND()),IF($R$1=2,INT(7*RAND()),INT(16*RAND()+1))),E42) -> 16 | G42: =IF(F42=C42,IF($R$1=1,INT(5*RAND()),IF($R$1=2,INT(7*RAND()),INT(16*RAND()+1))),F42) -> 16 | H42: =IF(C42=0,2,IF(C42=1,4,IF(C42=2,5,IF(C42=3,8,IF(C42=4,10,IF(C42=5,3,IF(C42=6,6,C42))))))) -> 9 | I42: =IF(G42=0,2,IF(G42=1,4,IF(G42=2,5,IF(G42=3,8,IF(G42=4,10,IF(G42=5,3,IF(G42=6,6,G42))))))) -> 16 | J42: =IF(I42=H42,I42+1,I42) -> 16 | K42: =H42*J42 -> 144 | L42: =IF(H42=2,1,INT(((K42-1)*RAND())/(I42-1))) -> 3 | M42: =IF(L42=H42,L42+1,L42) -> 3 | N42: =IF(M42=0,1,M42) -> 3 | O42: =N42*J42 -> 48 | P42: =RANDBETWEEN(1,(2*J42-1)) -> 25 | Q42: =P42*H42 -> 225 | R42: 1 | S42: - | T42: =IF(AND(R42=1,Q42>O42),P42,N42) -> 25 | U42: =S42 -> - | V42: =IF(AND(R42=1,Q42>O42),N42,P42) -> 3 | W42: = | X42: =Q42 -> 225 | Y42: 0 | Z42: =O42 -> 48 | AA42: = | AB42: =IF(R42=0,O42+Q42,ABS(O42-Q42)) -> 177 | AC42: =IF(AB42>=AB43,"Improper","Proper") -> Improper | AE42: =GCD(AB42,AB43) -> 3 | AF42: =AB42/AE42 -> 59 | AH42: =INT(AF42/AF43) -> 1 | AI42: =IF(AB42=AB43,"",AF42-AH42*AF43) -> 11 | AJ42: =AH42 -> 1 | AK42: =AI42 -> 11 | AL42: =IF(AK42=AF42,"",AK42) -> 11 | AN42: =CONCATENATE(AB42,"/",AB43) -> 177/144 | AO42: = | AP42: =CONCATENATE(AF42,"/",AF43) -> 59/48 | AQ42: = | AR42: =IF(AH42=0,CONCATENATE(AI42,"/",AF43),CONCATENATE(AH42," ",AI42,"/",AF43)) -> 1 11/48
R43: 1 | S43: - | T43: =IF(AND(R42=1,Q42>O42),J42,H42) -> 16 | V43: =IF(AND(R42=1,Q42>O42),H42,J42) -> 9 | X43: =K42 -> 144 | Y43: 0 | Z43: =K42 -> 144 | AB43: =K42 -> 144 | AF43: =AB43/AE42 -> 48 | AG43: =IF(AF43=AF42,"",AF43) -> 48 | AK43: =AF43 -> 48 | AL43: =IF(OR(AK42=AF42,AK42=0),"",AK43) -> 48
A44: 21 | B44: =CONCATENATE(A44,")") -> 21) | C44: =IF($R$1=1,INT(5*RAND()),IF($R$1=2,INT(7*RAND()),INT(16*RAND()+1))) -> 14 | D44: =IF($R$1=1,INT(5*RAND()),IF($R$1=2,INT(7*RAND()),INT(16*RAND()+1))) -> 16 | E44: =IF(D44=C44,IF($R$1=1,INT(5*RAND()),IF($R$1=2,INT(7*RAND()),INT(16*RAND()+1))),D44) -> 16 | F44: =IF(E44=C44,IF($R$1=1,INT(5*RAND()),IF($R$1=2,INT(7*RAND()),INT(16*RAND()+1))),E44) -> 16 | G44: =IF(F44=C44,IF($R$1=1,INT(5*RAND()),IF($R$1=2,INT(7*RAND()),INT(16*RAND()+1))),F44) -> 16 | H44: =IF(C44=0,2,IF(C44=1,4,IF(C44=2,5,IF(C44=3,8,IF(C44=4,10,IF(C44=5,3,IF(C44=6,6,C44))))))) -> 14 | I44: =IF(G44=0,2,IF(G44=1,4,IF(G44=2,5,IF(G44=3,8,IF(G44=4,10,IF(G44=5,3,IF(G44=6,6,G44))))))) -> 16 | J44: =IF(I44=H44,I44+1,I44) -> 16 | K44: =H44*J44 -> 224 | L44: =IF(H44=2,1,INT(((K44-1)*RAND())/(I44-1))) -> 4 | M44: =IF(L44=H44,L44+1,L44) -> 4 | N44: =IF(M44=0,1,M44) -> 4 | O44: =N44*J44 -> 64 | P44: =RANDBETWEEN(1,(2*J44-1)) -> 31 | Q44: =P44*H44 -> 434 | R44: 1 | S44: - | T44: =IF(AND(R44=1,Q44>O44),P44,N44) -> 31 | U44: =S44 -> - | V44: =IF(AND(R44=1,Q44>O44),N44,P44) -> 4 | W44: = | X44: =Q44 -> 434 | Y44: 0 | Z44: =O44 -> 64 | AA44: = | AB44: =IF(R44=0,O44+Q44,ABS(O44-Q44)) -> 370 | AC44: =IF(AB44>=AB45,"Improper","Proper") -> Improper | AE44: =GCD(AB44,AB45) -> 2 | AF44: =AB44/AE44 -> 185 | AH44: =INT(AF44/AF45) -> 1 | AI44: =IF(AB44=AB45,"",AF44-AH44*AF45) -> 73 | AJ44: =AH44 -> 1 | AK44: =AI44 -> 73 | AL44: =IF(AK44=AF44,"",AK44) -> 73 | AN44: =CONCATENATE(AB44,"/",AB45) -> 370/224 | AO44: = | AP44: =CONCATENATE(AF44,"/",AF45) -> 185/112 | AQ44: = | AR44: =IF(AH44=0,CONCATENATE(AI44,"/",AF45),CONCATENATE(AH44," ",AI44,"/",AF45)) -> 1 73/112
R45: 1 | S45: - | T45: =IF(AND(R44=1,Q44>O44),J44,H44) -> 16 | V45: =IF(AND(R44=1,Q44>O44),H44,J44) -> 14 | X45: =K44 -> 224 | Y45: 0 | Z45: =K44 -> 224 | AB45: =K44 -> 224 | AF45: =AB45/AE44 -> 112 | AG45: =IF(AF45=AF44,"",AF45) -> 112 | AK45: =AF45 -> 112 | AL45: =IF(OR(AK44=AF44,AK44=0),"",AK45) -> 112
A46: 22 | B46: =CONCATENATE(A46,")") -> 22) | C46: =IF($R$1=1,INT(5*RAND()),IF($R$1=2,INT(7*RAND()),INT(16*RAND()+1))) -> 4 | D46: =IF($R$1=1,INT(5*RAND()),IF($R$1=2,INT(7*RAND()),INT(16*RAND()+1))) -> 11 | E46: =IF(D46=C46,IF($R$1=1,INT(5*RAND()),IF($R$1=2,INT(7*RAND()),INT(16*RAND()+1))),D46) -> 11 | F46: =IF(E46=C46,IF($R$1=1,INT(5*RAND()),IF($R$1=2,INT(7*RAND()),INT(16*RAND()+1))),E46) -> 11 | G46: =IF(F46=C46,IF($R$1=1,INT(5*RAND()),IF($R$1=2,INT(7*RAND()),INT(16*RAND()+1))),F46) -> 11 | H46: =IF(C46=0,2,IF(C46=1,4,IF(C46=2,5,IF(C46=3,8,IF(C46=4,10,IF(C46=5,3,IF(C46=6,6,C46))))))) -> 10 | I46: =IF(G46=0,2,IF(G46=1,4,IF(G46=2,5,IF(G46=3,8,IF(G46=4,10,IF(G46=5,3,IF(G46=6,6,G46))))))) -> 11 | J46: =IF(I46=H46,I46+1,I46) -> 11 | K46: =H46*J46 -> 110 | L46: =IF(H46=2,1,INT(((K46-1)*RAND())/(I46-1))) -> 0 | M46: =IF(L46=H46,L46+1,L46) -> 0 | N46: =IF(M46=0,1,M46) -> 1 | O46: =N46*J46 -> 11 | P46: =RANDBETWEEN(1,(2*J46-1)) -> 4 | Q46: =P46*H46 -> 40 | R46: 1 | S46: - | T46: =IF(AND(R46=1,Q46>O46),P46,N46) -> 4 | U46: =S46 -> - | V46: =IF(AND(R46=1,Q46>O46),N46,P46) -> 1 | W46: = | X46: =Q46 -> 40 | Y46: 0 | Z46: =O46 -> 11 | AA46: = | AB46: =IF(R46=0,O46+Q46,ABS(O46-Q46)) -> 29 | AC46: =IF(AB46>=AB47,"Improper","Proper") -> Proper | AE46: =GCD(AB46,AB47) -> 1 | AF46: =AB46/AE46 -> 29 | AH46: =INT(AF46/AF47) -> 0 | AI46: =IF(AB46=AB47,"",AF46-AH46*AF47) -> 29 | AJ46: =AH46 -> 0 | AK46: =AI46 -> 29 | AL46: =IF(AK46=AF46,"",AK46) ->  | AN46: =CONCATENATE(AB46,"/",AB47) -> 29/110 | AO46: = | AP46: =CONCATENATE(AF46,"/",AF47) -> 29/110 | AQ46: = | AR46: =IF(AH46=0,CONCATENATE(AI46,"/",AF47),CONCATENATE(AH46," ",AI46,"/",AF47)) -> 29/110
R47: 1 | S47: - | T47: =IF(AND(R46=1,Q46>O46),J46,H46) -> 11 | V47: =IF(AND(R46=1,Q46>O46),H46,J46) -> 10 | X47: =K46 -> 110 | Y47: 0 | Z47: =K46 -> 110 | AB47: =K46 -> 110 | AF47: =AB47/AE46 -> 110 | AG47: =IF(AF47=AF46,"",AF47) -> 110 | AK47: =AF47 -> 110 | AL47: =IF(OR(AK46=AF46,AK46=0),"",AK47) -> 
A48: 23 | B48: =CONCATENATE(A48,")") -> 23) | C48: =IF($R$1=1,INT(5*RAND()),IF($R$1=2,INT(7*RAND()),INT(16*RAND()+1))) -> 7 | D48: =IF($R$1=1,INT(5*RAND()),IF($R$1=2,INT(7*RAND()),INT(16*RAND()+1))) -> 1 | E48: =IF(D48=C48,IF($R$1=1,INT(5*RAND()),IF($R$1=2,INT(7*RAND()),INT(16*RAND()+1))),D48) -> 1 | F48: =IF(E48=C48,IF($R$1=1,INT(5*RAND()),IF($R$1=2,INT(7*RAND()),INT(16*RAND()+1))),E48) -> 1 | G48: =IF(F48=C48,IF($R$1=1,INT(5*RAND()),IF($R$1=2,INT(7*RAND()),INT(16*RAND()+1))),F48) -> 1 | H48: =IF(C48=0,2,IF(C48=1,4,IF(C48=2,5,IF(C48=3,8,IF(C48=4,10,IF(C48=5,3,IF(C48=6,6,C48))))))) -> 7 | I48: =IF(G48=0,2,IF(G48=1,4,IF(G48=2,5,IF(G48=3,8,IF(G48=4,10,IF(G48=5,3,IF(G48=6,6,G48))))))) -> 4 | J48: =IF(I48=H48,I48+1,I48) -> 4 | K48: =H48*J48 -> 28 | L48: =IF(H48=2,1,INT(((K48-1)*RAND())/(I48-1))) -> 6 | M48: =IF(L48=H48,L48+1,L48) -> 6 | N48: =IF(M48=0,1,M48) -> 6 | O48: =N48*J48 -> 24 | P48: =RANDBETWEEN(1,(2*J48-1)) -> 3 | Q48: =P48*H48 -> 21 | R48: 1 | S48: - | T48: =IF(AND(R48=1,Q48>O48),P48,N48) -> 6 | U48: =S48 -> - | V48: =IF(AND(R48=1,Q48>O48),N48,P48) -> 3 | W48: = | X48: =Q48 -> 21 | Y48: 0 | Z48: =O48 -> 24 | AA48: = | AB48: =IF(R48=0,O48+Q48,ABS(O48-Q48)) -> 3 | AC48: =IF(AB48>=AB49,"Improper","Proper") -> Proper | AE48: =GCD(AB48,AB49) -> 1 | AF48: =AB48/AE48 -> 3 | AH48: =INT(AF48/AF49) -> 0 | AI48: =IF(AB48=AB49,"",AF48-AH48*AF49) -> 3 | AJ48: =AH48 -> 0 | AK48: =AI48 -> 3 | AL48: =IF(AK48=AF48,"",AK48) ->  | AN48: =CONCATENATE(AB48,"/",AB49) -> 3/28 | AO48: = | AP48: =CONCATENATE(AF48,"/",AF49) -> 3/28 | AQ48: = | AR48: =IF(AH48=0,CONCATENATE(AI48,"/",AF49),CONCATENATE(AH48," ",AI48,"/",AF49)) -> 3/28
R49: 1 | S49: - | T49: =IF(AND(R48=1,Q48>O48),J48,H48) -> 7 | V49: =IF(AND(R48=1,Q48>O48),H48,J48) -> 4 | X49: =K48 -> 28 | Y49: 0 | Z49: =K48 -> 28 | AB49: =K48 -> 28 | AF49: =AB49/AE48 -> 28 | AG49: =IF(AF49=AF48,"",AF49) -> 28 | AK49: =AF49 -> 28 | AL49: =IF(OR(AK48=AF48,AK48=0),"",AK49) -> 
A50: 24 | B50: =CONCATENATE(A50,")") -> 24) | C50: =IF($R$1=1,INT(5*RAND()),IF($R$1=2,INT(7*RAND()),INT(16*RAND()+1))) -> 12 | D50: =IF($R$1=1,INT(5*RAND()),IF($R$1=2,INT(7*RAND()),INT(16*RAND()+1))) -> 9 | E50: =IF(D50=C50,IF($R$1=1,INT(5*RAND()),IF($R$1=2,INT(7*RAND()),INT(16*RAND()+1))),D50) -> 9 | F50: =IF(E50=C50,IF($R$1=1,INT(5*RAND()),IF($R$1=2,INT(7*RAND()),INT(16*RAND()+1))),E50) -> 9 | G50: =IF(F50=C50,IF($R$1=1,INT(5*RAND()),IF($R$1=2,INT(7*RAND()),INT(16*RAND()+1))),F50) -> 9 | H50: =IF(C50=0,2,IF(C50=1,4,IF(C50=2,5,IF(C50=3,8,IF(C50=4,10,IF(C50=5,3,IF(C50=6,6,C50))))))) -> 12 | I50: =IF(G50=0,2,IF(G50=1,4,IF(G50=2,5,IF(G50=3,8,IF(G50=4,10,IF(G50=5,3,IF(G50=6,6,G50))))))) -> 9 | J50: =IF(I50=H50,I50+1,I50) -> 9 | K50: =H50*J50 -> 108 | L50: =IF(H50=2,1,INT(((K50-1)*RAND())/(I50-1))) -> 12 | M50: =IF(L50=H50,L50+1,L50) -> 13 | N50: =IF(M50=0,1,M50) -> 13 | O50: =N50*J50 -> 117 | P50: =RANDBETWEEN(1,(2*J50-1)) -> 11 | Q50: =P50*H50 -> 132 | R50: 1 | S50: - | T50: =IF(AND(R50=1,Q50>O50),P50,N50) -> 11 | U50: =S50 -> - | V50: =IF(AND(R50=1,Q50>O50),N50,P50) -> 13 | W50: = | X50: =Q50 -> 132 | Y50: 0 | Z50: =O50 -> 117 | AA50: = | AB50: =IF(R50=0,O50+Q50,ABS(O50-Q50)) -> 15 | AC50: =IF(AB50>=AB51,"Improper","Proper") -> Proper | AE50: =GCD(AB50,AB51) -> 3 | AF50: =AB50/AE50 -> 5 | AH50: =INT(AF50/AF51) -> 0 | AI50: =IF(AB50=AB51,"",AF50-AH50*AF51) -> 5 | AJ50: =AH50 -> 0 | AK50: =AI50 -> 5 | AL50: =IF(AK50=AF50,"",AK50) ->  | AN50: =CONCATENATE(AB50,"/",AB51) -> 15/108 | AO50: = | AP50: =CONCATENATE(AF50,"/",AF51) -> 5/36 | AQ50: = | AR50: =IF(AH50=0,CONCATENATE(AI50,"/",AF51),CONCATENATE(AH50," ",AI50,"/",AF51)) -> 5/36
R51: 1 | S51: - | T51: =IF(AND(R50=1,Q50>O50),J50,H50) -> 9 | V51: =IF(AND(R50=1,Q50>O50),H50,J50) -> 12 | X51: =K50 -> 108 | Y51: 0 | Z51: =K50 -> 108 | AB51: =K50 -> 108 | AF51: =AB51/AE50 -> 36 | AG51: =IF(AF51=AF50,"",AF51) -> 36 | AK51: =AF51 -> 36 | AL51: =IF(OR(AK50=AF50,AK50=0),"",AK51) -> 
A52: 25 | B52: =CONCATENATE(A52,")") -> 25) | C52: =IF($R$1=1,INT(5*RAND()),IF($R$1=2,INT(7*RAND()),INT(16*RAND()+1))) -> 13 | D52: =IF($R$1=1,INT(5*RAND()),IF($R$1=2,INT(7*RAND()),INT(16*RAND()+1))) -> 8 | E52: =IF(D52=C52,IF($R$1=1,INT(5*RAND()),IF($R$1=2,INT(7*RAND()),INT(16*RAND()+1))),D52) -> 8 | F52: =IF(E52=C52,IF($R$1=1,INT(5*RAND()),IF($R$1=2,INT(7*RAND()),INT(16*RAND()+1))),E52) -> 8 | G52: =IF(F52=C52,IF($R$1=1,INT(5*RAND()),IF($R$1=2,INT(7*RAND()),INT(16*RAND()+1))),F52) -> 8 | H52: =IF(C52=0,2,IF(C52=1,4,IF(C52=2,5,IF(C52=3,8,IF(C52=4,10,IF(C52=5,3,IF(C52=6,6,C52))))))) -> 13 | I52: =IF(G52=0,2,IF(G52=1,4,IF(G52=2,5,IF(G52=3,8,IF(G52=4,10,IF(G52=5,3,IF(G52=6,6,G52))))))) -> 8 | J52: =IF(I52=H52,I52+1,I52) -> 8 | K52: =H52*J52 -> 104 | L52: =IF(H52=2,1,INT(((K52-1)*RAND())/(I52-1))) -> 0 | M52: =IF(L52=H52,L52+1,L52) -> 0 | N52: =IF(M52=0,1,M52) -> 1 | O52: =N52*J52 -> 8 | P52: =RANDBETWEEN(1,(2*J52-1)) -> 8 | Q52: =P52*H52 -> 104 | R52: 1 | S52: - | T52: =IF(AND(R52=1,Q52>O52),P52,N52) -> 8 | U52: =S52 -> - | V52: =IF(AND(R52=1,Q52>O52),N52,P52) -> 1 | W52: = | X52: =Q52 -> 104 | Y52: 0 | Z52: =O52 -> 8 | AA52: = | AB52: =IF(R52=0,O52+Q52,ABS(O52-Q52)) -> 96 | AC52: =IF(AB52>=AB53,"Improper","Proper") -> Proper | AE52: =GCD(AB52,AB53) -> 8 | AF52: =AB52/AE52 -> 12 | AH52: =INT(AF52/AF53) -> 0 | AI52: =IF(AB52=AB53,"",AF52-AH52*AF53) -> 12 | AJ52: =AH52 -> 0 | AK52: =AI52 -> 12 | AL52: =IF(AK52=AF52,"",AK52) ->  | AN52: =CONCATENATE(AB52,"/",AB53) -> 96/104 | AO52: = | AP52: =CONCATENATE(AF52,"/",AF53) -> 12/13 | AQ52: = | AR52: =IF(AH52=0,CONCATENATE(AI52,"/",AF53),CONCATENATE(AH52," ",AI52,"/",AF53)) -> 12/13
R53: 1 | S53: - | T53: =IF(AND(R52=1,Q52>O52),J52,H52) -> 8 | V53: =IF(AND(R52=1,Q52>O52),H52,J52) -> 13 | X53: =K52 -> 104 | Y53: 0 | Z53: =K52 -> 104 | AB53: =K52 -> 104 | AF53: =AB53/AE52 -> 13 | AG53: =IF(AF53=AF52,"",AF53) -> 13 | AK53: =AF53 -> 13 | AL53: =IF(OR(AK52=AF52,AK52=0),"",AK53) -> 
A54: 26 | B54: =CONCATENATE(A54,")") -> 26) | C54: =IF($R$1=1,INT(5*RAND()),IF($R$1=2,INT(7*RAND()),INT(16*RAND()+1))) -> 2 | D54: =IF($R$1=1,INT(5*RAND()),IF($R$1=2,INT(7*RAND()),INT(16*RAND()+1))) -> 5 | E54: =IF(D54=C54,IF($R$1=1,INT(5*RAND()),IF($R$1=2,INT(7*RAND()),INT(16*RAND()+1))),D54) -> 5 | F54: =IF(E54=C54,IF($R$1=1,INT(5*RAND()),IF($R$1=2,INT(7*RAND()),INT(16*RAND()+1))),E54) -> 5 | G54: =IF(F54=C54,IF($R$1=1,INT(5*RAND()),IF($R$1=2,INT(7*RAND()),INT(16*RAND()+1))),F54) -> 5 | H54: =IF(C54=0,2,IF(C54=1,4,IF(C54=2,5,IF(C54=3,8,IF(C54=4,10,IF(C54=5,3,IF(C54=6,6,C54))))))) -> 5 | I54: =IF(G54=0,2,IF(G54=1,4,IF(G54=2,5,IF(G54=3,8,IF(G54=4,10,IF(G54=5,3,IF(G54=6,6,G54))))))) -> 3 | J54: =IF(I54=H54,I54+1,I54) -> 3 | K54: =H54*J54 -> 15 | L54: =IF(H54=2,1,INT(((K54-1)*RAND())/(I54-1))) -> 5 | M54: =IF(L54=H54,L54+1,L54) -> 6 | N54: =IF(M54=0,1,M54) -> 6 | O54: =N54*J54 -> 18 | P54: =RANDBETWEEN(1,(2*J54-1)) -> 5 | Q54: =P54*H54 -> 25 | R54: 1 | S54: - | T54: =IF(AND(R54=1,Q54>O54),P54,N54) -> 5 | U54: =S54 -> - | V54: =IF(AND(R54=1,Q54>O54),N54,P54) -> 6 | W54: = | X54: =Q54 -> 25 | Y54: 0 | Z54: =O54 -> 18 | AA54: = | AB54: =IF(R54=0,O54+Q54,ABS(O54-Q54)) -> 7 | AC54: =IF(AB54>=AB55,"Improper","Proper") -> Proper | AE54: =GCD(AB54,AB55) -> 1 | AF54: =AB54/AE54 -> 7 | AH54: =INT(AF54/AF55) -> 0 | AI54: =IF(AB54=AB55,"",AF54-AH54*AF55) -> 7 | AJ54: =AH54 -> 0 | AK54: =AI54 -> 7 | AL54: =IF(AK54=AF54,"",AK54) ->  | AN54: =CONCATENATE(AB54,"/",AB55) -> 7/15 | AO54: = | AP54: =CONCATENATE(AF54,"/",AF55) -> 7/15 | AQ54: = | AR54: =IF(AH54=0,CONCATENATE(AI54,"/",AF55),CONCATENATE(AH54," ",AI54,"/",AF55)) -> 7/15
R55: 1 | S55: - | T55: =IF(AND(R54=1,Q54>O54),J54,H54) -> 3 | V55: =IF(AND(R54=1,Q54>O54),H54,J54) -> 5 | X55: =K54 -> 15 | Y55: 0 | Z55: =K54 -> 15 | AB55: =K54 -> 15 | AF55: =AB55/AE54 -> 15 | AG55: =IF(AF55=AF54,"",AF55) -> 15 | AK55: =AF55 -> 15 | AL55: =IF(OR(AK54=AF54,AK54=0),"",AK55) -> 
A56: 27 | B56: =CONCATENATE(A56,")") -> 27) | C56: =IF($R$1=1,INT(5*RAND()),IF($R$1=2,INT(7*RAND()),INT(16*RAND()+1))) -> 16 | D56: =IF($R$1=1,INT(5*RAND()),IF($R$1=2,INT(7*RAND()),INT(16*RAND()+1))) -> 2 | E56: =IF(D56=C56,IF($R$1=1,INT(5*RAND()),IF($R$1=2,INT(7*RAND()),INT(16*RAND()+1))),D56) -> 2 | F56: =IF(E56=C56,IF($R$1=1,INT(5*RAND()),IF($R$1=2,INT(7*RAND()),INT(16*RAND()+1))),E56) -> 2 | G56: =IF(F56=C56,IF($R$1=1,INT(5*RAND()),IF($R$1=2,INT(7*RAND()),INT(16*RAND()+1))),F56) -> 2 | H56: =IF(C56=0,2,IF(C56=1,4,IF(C56=2,5,IF(C56=3,8,IF(C56=4,10,IF(C56=5,3,IF(C56=6,6,C56))))))) -> 16 | I56: =IF(G56=0,2,IF(G56=1,4,IF(G56=2,5,IF(G56=3,8,IF(G56=4,10,IF(G56=5,3,IF(G56=6,6,G56))))))) -> 5 | J56: =IF(I56=H56,I56+1,I56) -> 5 | K56: =H56*J56 -> 80 | L56: =IF(H56=2,1,INT(((K56-1)*RAND())/(I56-1))) -> 6 | M56: =IF(L56=H56,L56+1,L56) -> 6 | N56: =IF(M56=0,1,M56) -> 6 | O56: =N56*J56 -> 30 | P56: =RANDBETWEEN(1,(2*J56-1)) -> 3 | Q56: =P56*H56 -> 48 | R56: 1 | S56: - | T56: =IF(AND(R56=1,Q56>O56),P56,N56) -> 3 | U56: =S56 -> - | V56: =IF(AND(R56=1,Q56>O56),N56,P56) -> 6 | W56: = | X56: =Q56 -> 48 | Y56: 0 | Z56: =O56 -> 30 | AA56: = | AB56: =IF(R56=0,O56+Q56,ABS(O56-Q56)) -> 18 | AC56: =IF(AB56>=AB57,"Improper","Proper") -> Proper | AE56: =GCD(AB56,AB57) -> 2 | AF56: =AB56/AE56 -> 9 | AH56: =INT(AF56/AF57) -> 0 | AI56: =IF(AB56=AB57,"",AF56-AH56*AF57) -> 9 | AJ56: =AH56 -> 0 | AK56: =AI56 -> 9 | AL56: =IF(AK56=AF56,"",AK56) ->  | AN56: =CONCATENATE(AB56,"/",AB57) -> 18/80 | AO56: = | AP56: =CONCATENATE(AF56,"/",AF57) -> 9/40 | AQ56: = | AR56: =IF(AH56=0,CONCATENATE(AI56,"/",AF57),CONCATENATE(AH56," ",AI56,"/",AF57)) -> 9/40
R57: 1 | S57: - | T57: =IF(AND(R56=1,Q56>O56),J56,H56) -> 5 | V57: =IF(AND(R56=1,Q56>O56),H56,J56) -> 16 | X57: =K56 -> 80 | Y57: 0 | Z57: =K56 -> 80 | AB57: =K56 -> 80 | AF57: =AB57/AE56 -> 40 | AG57: =IF(AF57=AF56,"",AF57) -> 40 | AK57: =AF57 -> 40 | AL57: =IF(OR(AK56=AF56,AK56=0),"",AK57) -> 
A58: 28 | B58: =CONCATENATE(A58,")") -> 28) | C58: =IF($R$1=1,INT(5*RAND()),IF($R$1=2,INT(7*RAND()),INT(16*RAND()+1))) -> 15 | D58: =IF($R$1=1,INT(5*RAND()),IF($R$1=2,INT(7*RAND()),INT(16*RAND()+1))) -> 14 | E58: =IF(D58=C58,IF($R$1=1,INT(5*RAND()),IF($R$1=2,INT(7*RAND()),INT(16*RAND()+1))),D58) -> 14 | F58: =IF(E58=C58,IF($R$1=1,INT(5*RAND()),IF($R$1=2,INT(7*RAND()),INT(16*RAND()+1))),E58) -> 14 | G58: =IF(F58=C58,IF($R$1=1,INT(5*RAND()),IF($R$1=2,INT(7*RAND()),INT(16*RAND()+1))),F58) -> 14 | H58: =IF(C58=0,2,IF(C58=1,4,IF(C58=2,5,IF(C58=3,8,IF(C58=4,10,IF(C58=5,3,IF(C58=6,6,C58))))))) -> 15 | I58: =IF(G58=0,2,IF(G58=1,4,IF(G58=2,5,IF(G58=3,8,IF(G58=4,10,IF(G58=5,3,IF(G58=6,6,G58))))))) -> 14 | J58: =IF(I58=H58,I58+1,I58) -> 14 | K58: =H58*J58 -> 210 | L58: =IF(H58=2,1,INT(((K58-1)*RAND())/(I58-1))) -> 13 | M58: =IF(L58=H58,L58+1,L58) -> 13 | N58: =IF(M58=0,1,M58) -> 13 | O58: =N58*J58 -> 182 | P58: =RANDBETWEEN(1,(2*J58-1)) -> 20 | Q58: =P58*H58 -> 300 | R58: 1 | S58: - | T58: =IF(AND(R58=1,Q58>O58),P58,N58) -> 20 | U58: =S58 -> - | V58: =IF(AND(R58=1,Q58>O58),N58,P58) -> 13 | W58: = | X58: =Q58 -> 300 | Y58: 0 | Z58: =O58 -> 182 | AA58: = | AB58: =IF(R58=0,O58+Q58,ABS(O58-Q58)) -> 118 | AC58: =IF(AB58>=AB59,"Improper","Proper") -> Proper | AE58: =GCD(AB58,AB59) -> 2 | AF58: =AB58/AE58 -> 59 | AH58: =INT(AF58/AF59) -> 0 | AI58: =IF(AB58=AB59,"",AF58-AH58*AF59) -> 59 | AJ58: =AH58 -> 0 | AK58: =AI58 -> 59 | AL58: =IF(AK58=AF58,"",AK58) ->  | AN58: =CONCATENATE(AB58,"/",AB59) -> 118/210 | AO58: = | AP58: =CONCATENATE(AF58,"/",AF59) -> 59/105 | AQ58: = | AR58: =IF(AH58=0,CONCATENATE(AI58,"/",AF59),CONCATENATE(AH58," ",AI58,"/",AF59)) -> 59/105
R59: 1 | S59: - | T59: =IF(AND(R58=1,Q58>O58),J58,H58) -> 14 | V59: =IF(AND(R58=1,Q58>O58),H58,J58) -> 15 | X59: =K58 -> 210 | Y59: 0 | Z59: =K58 -> 210 | AB59: =K58 -> 210 | AF59: =AB59/AE58 -> 105 | AG59: =IF(AF59=AF58,"",AF59) -> 105 | AK59: =AF59 -> 105 | AL59: =IF(OR(AK58=AF58,AK58=0),"",AK59) -> 
A60: 29 | B60: =CONCATENATE(A60,")") -> 29) | C60: =IF($R$1=1,INT(5*RAND()),IF($R$1=2,INT(7*RAND()),INT(16*RAND()+1))) -> 12 | D60: =IF($R$1=1,INT(5*RAND()),IF($R$1=2,INT(7*RAND()),INT(16*RAND()+1))) -> 5 | E60: =IF(D60=C60,IF($R$1=1,INT(5*RAND()),IF($R$1=2,INT(7*RAND()),INT(16*RAND()+1))),D60) -> 5 | F60: =IF(E60=C60,IF($R$1=1,INT(5*RAND()),IF($R$1=2,INT(7*RAND()),INT(16*RAND()+1))),E60) -> 5 | G60: =IF(F60=C60,IF($R$1=1,INT(5*RAND()),IF($R$1=2,INT(7*RAND()),INT(16*RAND()+1))),F60) -> 5 | H60: =IF(C60=0,2,IF(C60=1,4,IF(C60=2,5,IF(C60=3,8,IF(C60=4,10,IF(C60=5,3,IF(C60=6,6,C60))))))) -> 12 | I60: =IF(G60=0,2,IF(G60=1,4,IF(G60=2,5,IF(G60=3,8,IF(G60=4,10,IF(G60=5,3,IF(G60=6,6,G60))))))) -> 3 | J60: =IF(I60=H60,I60+1,I60) -> 3 | K60: =H60*J60 -> 36 | L60: =IF(H60=2,1,INT(((K60-1)*RAND())/(I60-1))) -> 14 | M60: =IF(L60=H60,L60+1,L60) -> 14 | N60: =IF(M60=0,1,M60) -> 14 | O60: =N60*J60 -> 42 | P60: =RANDBETWEEN(1,(2*J60-1)) -> 4 | Q60: =P60*H60 -> 48 | R60: 1 | S60: - | T60: =IF(AND(R60=1,Q60>O60),P60,N60) -> 4 | U60: =S60 -> - | V60: =IF(AND(R60=1,Q60>O60),N60,P60) -> 14 | W60: = | X60: =Q60 -> 48 | Y60: 0 | Z60: =O60 -> 42 | AA60: = | AB60: =IF(R60=0,O60+Q60,ABS(O60-Q60)) -> 6 | AC60: =IF(AB60>=AB61,"Improper","Proper") -> Proper | AE60: =GCD(AB60,AB61) -> 6 | AF60: =AB60/AE60 -> 1 | AH60: =INT(AF60/AF61) -> 0 | AI60: =IF(AB60=AB61,"",AF60-AH60*AF61) -> 1 | AJ60: =AH60 -> 0 | AK60: =AI60 -> 1 | AL60: =IF(AK60=AF60,"",AK60) ->  | AN60: =CONCATENATE(AB60,"/",AB61) -> 6/36 | AO60: = | AP60: =CONCATENATE(AF60,"/",AF61) -> 1/6 | AQ60: = | AR60: =IF(AH60=0,CONCATENATE(AI60,"/",AF61),CONCATENATE(AH60," ",AI60,"/",AF61)) -> 1/6
R61: 1 | S61: - | T61: =IF(AND(R60=1,Q60>O60),J60,H60) -> 3 | V61: =IF(AND(R60=1,Q60>O60),H60,J60) -> 12 | X61: =K60 -> 36 | Y61: 0 | Z61: =K60 -> 36 | AB61: =K60 -> 36 | AF61: =AB61/AE60 -> 6 | AG61: =IF(AF61=AF60,"",AF61) -> 6 | AK61: =AF61 -> 6 | AL61: =IF(OR(AK60=AF60,AK60=0),"",AK61) -> 
A62: 30 | B62: =CONCATENATE(A62,")") -> 30) | C62: =IF($R$1=1,INT(5*RAND()),IF($R$1=2,INT(7*RAND()),INT(16*RAND()+1))) -> 10 | D62: =IF($R$1=1,INT(5*RAND()),IF($R$1=2,INT(7*RAND()),INT(16*RAND()+1))) -> 7 | E62: =IF(D62=C62,IF($R$1=1,INT(5*RAND()),IF($R$1=2,INT(7*RAND()),INT(16*RAND()+1))),D62) -> 7 | F62: =IF(E62=C62,IF($R$1=1,INT(5*RAND()),IF($R$1=2,INT(7*RAND()),INT(16*RAND()+1))),E62) -> 7 | G62: =IF(F62=C62,IF($R$1=1,INT(5*RAND()),IF($R$1=2,INT(7*RAND()),INT(16*RAND()+1))),F62) -> 7 | H62: =IF(C62=0,2,IF(C62=1,4,IF(C62=2,5,IF(C62=3,8,IF(C62=4,10,IF(C62=5,3,IF(C62=6,6,C62))))))) -> 10 | I62: =IF(G62=0,2,IF(G62=1,4,IF(G62=2,5,IF(G62=3,8,IF(G62=4,10,IF(G62=5,3,IF(G62=6,6,G62))))))) -> 7 | J62: =IF(I62=H62,I62+1,I62) -> 7 | K62: =H62*J62 -> 70 | L62: =IF(H62=2,1,INT(((K62-1)*RAND())/(I62-1))) -> 6 | M62: =IF(L62=H62,L62+1,L62) -> 6 | N62: =IF(M62=0,1,M62) -> 6 | O62: =N62*J62 -> 42 | P62: =RANDBETWEEN(1,(2*J62-1)) -> 1 | Q62: =P62*H62 -> 10 | R62: 1 | S62: - | T62: =IF(AND(R62=1,Q62>O62),P62,N62) -> 6 | U62: =S62 -> - | V62: =IF(AND(R62=1,Q62>O62),N62,P62) -> 1 | W62: = | X62: =Q62 -> 10 | Y62: 0 | Z62: =O62 -> 42 | AA62: = | AB62: =IF(R62=0,O62+Q62,ABS(O62-Q62)) -> 32 | AC62: =IF(AB62>=AB63,"Improper","Proper") -> Proper | AE62: =GCD(AB62,AB63) -> 2 | AF62: =AB62/AE62 -> 16 | AH62: =INT(AF62/AF63) -> 0 | AI62: =IF(AB62=AB63,"",AF62-AH62*AF63) -> 16 | AJ62: =AH62 -> 0 | AK62: =AI62 -> 16 | AL62: =IF(AK62=AF62,"",AK62) ->  | AN62: =CONCATENATE(AB62,"/",AB63) -> 32/70 | AO62: = | AP62: =CONCATENATE(AF62,"/",AF63) -> 16/35 | AQ62: = | AR62: =IF(AH62=0,CONCATENATE(AI62,"/",AF63),CONCATENATE(AH62," ",AI62,"/",AF63)) -> 16/35
T63: =IF(AND(R62=1,Q62>O62),J62,H62) -> 10 | V63: =IF(AND(R62=1,Q62>O62),H62,J62) -> 7 | X63: =K62 -> 70 | Z63: =K62 -> 70 | AB63: =K62 -> 70 | AF63: =AB63/AE62 -> 35 | AG63: =IF(AF63=AF62,"",AF63) -> 35 | AK63: =AF63 -> 35 | AL63: =IF(OR(AK62=AF62,AK62=0),"",AK63) -> 
